Workbook

Sheet Read Me
A1: Read Me Sheet
A3: Toolbox on Solar Powered Irrigation Systems (SPIS)
B6: Introduction
B7: Design – Simplified Financial Viability Tool
A8: This tool allows for a comparative assessment between income and two (2) different irrigation pumping options.
A9: Information required for using this tool includes investment and operational costs for the different pumping systems, anticipated income from agricultural production and basic economic conditions (e.g. inflation rate)
B12: Overview
A13: This tool comprises the following sheets:
B14: "Input" | D14: for data entry of anticipated income and expenditure for pumping and irrigation technology
B15: "Output" | D15: for analysis of results automatically generated from Input sheet
B16: "Loan Repayment Solar" | D16: Hidden. For review of loan repayment schedule automatically generated from Input sheet
B17: "Loan Repayment Grid" | D17: Hidden. For review of loan repayment schedule automatically generated from Input sheet
B18: "Loan Repayment Diesel" | D18: Hidden. For review of loan repayment schedule automatically generated from Input sheet
B19: "Cashflow calculation" | D19: Hidden. For review of loan repayment schedule automatically generated from Input sheet
B21: Tips & Tricks
A23: Only enter values into white cells!
B24: None entry cells (coloured cells) are password protected. Password: GIZ
B25: Total water need per day can be calculated with the 3.1_SAFEGUARD Water_Water Requirement Tool
B26: Total income per year can be calculated with the 5.6_DESIGN_Farm Analysis Tool
B28: About
B29: Published by: GIZ & FAO
B30: Resposible: GIZ project Sustainable Energy for Food - Powering Agriculture
B31: Contact: Powering.Agriculture@giz.de
B32: Download link: https://energypedia.info/wiki/Toolbox_on_SPIS
B33: About: Powering Agriculture: An Energy Grand Challenge for Development: https://poweringag.org
B34: Version: 1.0 (January 2017)
B36: The Toolbox on Solar Powered Irrigation Systems is made possible through the global initiative Powering Agriculture: An Energy Grand Challenge for Development (PAEGC). In 2012, the United States Agency for International Development (USAID), the Swedish International Development Cooperation Agency (Sida), the German Federal Ministry for Economic Cooperation and Development (BMZ), Duke Energy, and the Overseas Private Investment Cooperation (OPIC) combined resources to create the PAEGC initiative. The objective of PAEGC is to support new and sustainable approaches to accelerate the development and deployment of clean energy solutions for increasing agriculture productivity and/or value for farmers and agribusinesses in developing countries and emerging regions that lack access to reliable, affordable clean energy.
B46: The designations employed and the presentation of material in this information product do not imply the expression of any opinion whatsoever on the part of the Food and Agriculture Organizations of the United Nations (FAO), Deutsche Gesellschaft für Internationale Zusammenarbeit (GIZ) GmbH or any of the PAEGC Founding Partners concerning the legal or development status of any country, territory, city or area or of its authorities, or concerning the delimitation of its frontiers or boundaries. The mention of specific companies or products of manufacturers, whether or not these have been patented, does not imply that these have been endorsed or recommended by FAO, GIZ, or any of the PAEGC Founding Partners in preference to others of a similar nature that are not mentioned. The views expressed in this information product are those of the author and do not necessarily reflect the views or policies of FAO, GIZ, or any of the PAEGC Founding Partners.
B57: FAO, GIZ and the PAEGC Founding Partners encourage the use, reproduction and dissemination of material in this information product. Except where otherwise indicated, material may be copied, downloaded and printed for private study, research and teaching purposes, or for use in non-commercial products or services, provided that appropriate acknowledgement of FAO and GIZ as the source and copyright holder is given.
B63: © GIZ and FAO, 2017

Sheet Input
B1: Design – Simplified Financial Viability Tool
B3: This INPUT sheet requires entry of values, which then serve the results displayed in the next OUTPUT sheet.
B6: Basic assumptions
B8: Currency used for calculation: | E8: KES | F8: use any currency
B10: Inflation | E10: 0.1148 | F10: the national percentage rate for the devaluation of money per year
B12: Discount rate | E12: 0.16 | F12: the annual rate used to determine the present value of future cash flows
B14: Annual profit margin increase | E14: 0.01 | F14: the rate at which the farmer will increase prices every year
B16: Annual fuel price increase | E16: 0.0384 | F16: the rate at which the energyprice (fuel & electricity) will increase every year
B19: Total water need per day | E19: 26 | F19: m³ per day
B21: Gross Farm Profit | E21: 523911 | F21: =E8 -> KES
B26: Assumptions for: | D26: Solar powered irrigation system costs
G29: Component lifespan
C30: Solar panels | E30: 400000 | F30: =E8 -> KES | G30: 20 | H30: Years
C31: Control unit | E31: 50000 | F31: =E8 -> KES | G31: 5 | H31: Years
B32: Initial Capital Costs | C32: Motor Pump | E32: 250000 | F32: =E8 -> KES | G32: 5 | H32: Years
C33: Wires / tubes | E33: 20000 | F33: =E8 -> KES | G33: 5 | H33: Years
C34: Water storage | E34: 55000 | F34: =IF($E$8="","",$E$8) -> KES | G34: 20 | H34: Years
C35: Irrigation system | E35: 80000 | F35: KES | G35: 5 | H35: Years
C36: Drilling | F36: KES
C37: Installation | E37: 25000 | F37: KES
C38: Other costs | F38: KES
C39: Totals costs | E39: =SUM(E30:E38) -> 880000 | F39: KES
B42: Running costs | C42: Maintenance costs per year: | E42: 6000 | F42: =E8 -> KES
C43: Operational costs per year: | F43: =IF($E$8="","",$E$8) -> KES
C45: Total costs per year: | E45: =SUM(E41:E43) -> 6000 | F45: =IF($E$8="","",$E$8) -> KES
C48: Loan amount | F48: =IF($E$8="","",$E$8) -> KES
B49: Loan | C49: Interest Rate
C50: Investment Period | F50: Years
C51: Name of Bank
B55: Assumptions for: | D55: Grid powered irrigation system costs
G58: Component lifespan
C59: Inverter | F59: =E8 -> KES | H59: Years
C60: Control unit | F60: =E8 -> KES | H60: Years
B61: Initial Capital Costs | C61: Motor Pump | E61: 150000 | F61: =E8 -> KES | G61: 5 | H61: Years
C62: Wires / tubes | E62: 50000 | F62: =IF($E$8="","",$E$8) -> KES | G62: 5 | H62: Years
C63: Water storage | E63: 55000 | F63: KES | G63: 20 | H63: Years
C64: Irrigation system | E64: 80000 | F64: KES | G64: 5 | H64: Years
C65: Drilling | F65: KES
C66: Installation | E66: 15000 | F66: KES
C67: Other costs | F67: KES
C68: Total costs | E68: =SUM(E59:E67) -> 350000 | F68: KES
G71: Assumptions Grid Connection costs
C72: Electricity costs per year: | E72: =J81 -> 13474.5 | F72: =IF($E$8="","",$E$8) -> KES
B73: Running costs | C73: Maintenance costs per year: | E73: 5000 | F73: =IF($E$8="","",$E$8) -> KES
C74: Operational costs per year: | F74: =IF($E$8="","",$E$8) -> KES | G74: Pump's power demand: | J74: 0.75 | K74: kW
G75: Daily water requirement: | J75: =E19 -> 26 | K75: m³/day
C76: Total costs per year: | E76: =SUM(E72:E74) -> 18474.5 | F76: =IF($E$8="","",$E$8) -> KES | G76: Volume flow m³/hour: | J76: 6 | K76: m³/hour
G77: kWh needed per day: | J77: =(J75/J76)*J74 -> 3.25 | K77: kWh
G78: Yearly irrigation days: | J78: 200 | K78: days/year
G79: kWh needed per year: | J79: =J78*J77 -> 650 | K79: kWh
C80: Loan amount | F80: =IF($E$8="","",$E$8) -> KES | G80: Cost kWh: | J80: 20.73 | K80: =IF($E$8="","",$E$8) & "/kWh" -> KES/kWh
B81: Loan | C81: Interest Rate | G81: Electricity cost per year: | J81: =J80*J79 -> 13474.5 | K81: =E8 -> KES
C82: Investment Period | F82: Years
C83: Name of Bank
B87: Assumptions for: | D87: Diesel powered irrigation system costs
G90: Component lifespan
C91: Generator | E91: 150000 | F91: =IF($E$8="","",$E$8) -> KES | G91: 3 | H91: Years
B92: Initial Capital Costs | C92: Pump | E92: 150000 | F92: KES | G92: 5 | H92: Years
C93: Wires / tubes | E93: 50000 | F93: KES | G93: 5 | H93: Years
C94: Water storage | E94: 55000 | F94: KES | G94: 20 | H94: Years
C95: Irrigation system | E95: 80000 | F95: KES | G95: 5 | H95: Years
C96: Drilling | F96: KES
C97: Installation | E97: 25000 | F97: KES
C98: Other costs | F98: KES
C99: Total costs | E99: =SUM(E89:E98) -> 510000 | F99: KES
G102: Assumptions Diesel Costs
C103: Fuel costs per year: | E103: =J111 -> 68466.66667 | F103: =IF($E$8="","",$E$8) -> KES
B104: Running costs | C104: Maintenance costs per year: | E104: 30000 | F104: =IF($E$8="","",$E$8) -> KES | G104: Pump's diesel demand: | J104: 1 | K104: l/hour
C105: Operational costs per year: | F105: =IF($E$8="","",$E$8) -> KES | G105: Daily water requirement: | J105: =E19 -> 26 | K105: m³/day
G106: Volume flow m³/hour: | J106: 6 | K106: m³/hour
C107: Total costs per year: | E107: =SUM(E103:E105) -> 98466.66667 | F107: =IF($E$8="","",$E$8) -> KES | G107: Diesel needed per day: | J107: =(J105/J106)*J104 -> 4.333333333 | K107: l/day
G108: Yearly irrigation days: | J108: 200 | K108: days/year
G109: Diesel needed per year: | J109: =J108*J107 -> 866.6666667 | K109: l/year
G110: Cost Diesel: | J110: 79 | K110: =IF($E$8="","",$E$8) & "/l" -> KES/l
C111: Loan amount | F111: =IF($E$8="","",$E$8) -> KES | G111: Diesel cost per year: | J111: =J110*J109 -> 68466.66667 | K111: =IF($E$8="","",$E$8) -> KES
B112: Loan | C112: Interest Rate
C113: Investment Period | F113: Years | G113: CO2 - Emissions per year: | J113: =2.62*J109 -> 2270.666667 | K113: kg/year
C114: Name of Bank

Sheet Output
A1: Design – Simplified Financial Viability Tool
A3: This OUTPUT sheet summarises the results as per the entries in the afore completed INPUT sheet.
A24: Basic assumptions
A26: Total water need per day | D26: =Input!E19 & " m³ per day" -> 26 m³ per day
A28: Total income per year | D28: =TEXT(Input!E21,"#.##0") &" " & Input!E8 -> 523.911 KES
A30: Inflation | D30: =Input!E10 -> 0.1148
A32: Discount rate | D32: =Input!E12 -> 0.16
A34: Annual profit margin increase | D34: =Input!E14 -> 0.01
A36: Annual fuel price increase | D36: =Input!E16 -> 0.0384
A38: Average annual gross profit (first 10 years) | D38: =TEXT(AVERAGE('Cashflow Calculation'!E9:N9),"#.##0") & " " &Input!E8 & " per year" -> 548.127 KES per year
A45: ="Analysis for " &Input!D26 -> Analysis for Solar powered irrigation system costs
A47: Internal Rate of Return (IRR) | D47: ='Cashflow Calculation'!C47 -> 0.5453239553
A49: Net Present Value (NPV) | D49: =TEXT('Cashflow Calculation'!C46,"#.##0") & " " &Input!E8 -> 1.564.106 KES
A51: Annual System Costs (average) | D51: =TEXT('Cashflow Calculation'!B41,"#.##0") &" " &Input!E8 -> 334.139 KES
A53: System Life Cycle Costs | D53: =TEXT('Cashflow Calculation'!B43,"#.##0") &" " &Input!E8 -> 6.682.770 KES
A55: Lending Bank: | D55: =IF(Input!E51=0,"",Input!E51) -> 
A57: Yearly loan Repayment: | D57: =TEXT('Loan Repayment Solar'!Scheduled_Monthly_Payment,"#.##0") &" " &Input!E8 -> 0 KES
A60: ="Analysis for " &Input!D55 -> Analysis for Grid powered irrigation system costs
A62: Internal Rate of Return (IRR) | D62: ='Cashflow Calculation'!C85 -> 1.430755333
A64: Net Present Value (NPV) | D64: =TEXT('Cashflow Calculation'!C84,"#.##0") &" " &Input!E8 -> 2.279.208 KES
A66: Annual System Costs (average) | D66: =TEXT('Cashflow Calculation'!B77,"#.##0") &" " &Input!E8 -> 199.619 KES
A68: System Life Cycle Costs | D68: =TEXT('Cashflow Calculation'!B79,"#.##0") &" " &Input!E8 -> 3.992.370 KES
A70: Lending Bank: | D70: =IF(Input!E83=0,"",Input!E83) -> 
A72: Yearly loan Repayment: | D72: =TEXT('Loan Repayment Grid'!Scheduled_Monthly_Payment,"#.##0") &" " &Input!E8 -> 0 KES
A75: ="Analysis for " &Input!D87 -> Analysis for Diesel powered irrigation system costs
H76: Note: | I76: If an error value is displayed for the Internal Rate of Return (IRR) then the IRR value is below 0% and the investment is not feasible.
A77: Internal Rate of Return (IRR) | D77: ='Cashflow Calculation'!C151 -> 0.7087265803 | I77: If a negative (-) Net Present Value (NPV) is displayed then the investment is not feasible.
A79: Net Present Value (NPV) | D79: =TEXT('Cashflow Calculation'!C150,"#.##0") &" " &Input!E8 -> 963.725 KES
H80: Notes / remarks:
A81: Annual System Costs (average) | D81: =TEXT('Cashflow Calculation'!B143,"#.##0") &" " &Input!E8 -> 472.204 KES
A83: System Life Cycle Costs | D83: =TEXT('Cashflow Calculation'!B145,"#.##0") &" " &Input!E8 -> 9.444.081 KES
A85: Lending Bank: | D85: =IF(Input!E114=0,"",Input!E114) -> 
A87: Yearly loan Repayment: | D87: =TEXT('Loan Repayment Diesel'!Scheduled_Monthly_Payment,"#.##0") &" " &Input!E8 -> 0 KES

Sheet Cashflow Calculation (hidden)
A1: Annual profit margin increase: | B1: =Input!E14 -> 0.01
A2: Inflation rate: | B2: =Input!E10 -> 0.1148
A3: Gross product/year: | B3: =Input!E21 -> 523911 | C3: =IF(Input!$E$8="","",Input!$E$8) -> KES
A4: Fuel price increase/year: | B4: =Input!E16 -> 0.0384
A5: Discount rate | B5: =Input!E12 -> 0.16
C8: year | D8: 0 | E8: 1 | F8: 2 | G8: 3 | H8: 4 | I8: 5 | J8: 6 | K8: 7 | L8: 8 | M8: 9 | N8: 10 | O8: 11 | P8: 12 | Q8: 13 | R8: 14 | S8: 15 | T8: 16 | U8: 17 | V8: 18 | W8: 19 | X8: 20 | Y8: 21 | Z8: 22 | AA8: 23 | AB8: 24 | AC8: 25
C9: =IF(Input!$E$8="","",Input!$E$8) -> KES | D9: 0 | E9: =B3 -> 523911 | F9: =E9*(1+(1*$B$1)) -> 529150.11 | G9: 534441.6111 | H9: 539786.0272 | I9: 545183.8875 | J9: 550635.7264 | K9: 556142.0836 | L9: 561703.5045 | M9: 567320.5395 | N9: 572993.7449 | O9: 578723.6823 | P9: 584510.9192 | Q9: 590356.0284 | R9: 596259.5886 | S9: 602222.1845 | T9: 608244.4064 | U9: 614326.8504 | V9: 620470.1189 | W9: 626674.8201 | X9: 632941.5683 | Y9: 639270.984 | Z9: 645663.6939 | AA9: 652120.3308 | AB9: 658641.5341 | AC9: 665227.9494
A10: Gross product per year:
A11: TRUE | C11: accumulated | D11: =IF($A$11=TRUE,D12,NA()) -> 0 | E11: =IF($A$11=TRUE,E12,NA()) -> 523911 | F11: 1053061.11 | G11: 1587502.721 | H11: 2127288.748 | I11: 2672472.636 | J11: 3223108.362 | K11: 3779250.446 | L11: 4340953.95 | M11: 4908274.49 | N11: 5481268.235 | O11: 6059991.917 | P11: 6644502.836 | Q11: 7234858.865 | R11: 7831118.453 | S11: 8433340.638 | T11: 9041585.044 | U11: 9655911.895 | V11: 10276382.01 | W11: 10903056.83 | X11: 11535998.4 | Y11: 12175269.39 | Z11: 12820933.08 | AA11: 13473053.41 | AB11: 14131694.94 | AC11: 14796922.89
D12: 0 | E12: =E9 -> 523911 | F12: =SUM($E$9:F9) -> 1053061.11 | G12: =SUM($E$9:G9) -> 1587502.721 | H12: =SUM($E$9:H9) -> 2127288.748 | I12: =SUM($E$9:I9) -> 2672472.636 | J12: =SUM($E$9:J9) -> 3223108.362 | K12: =SUM($E$9:K9) -> 3779250.446 | L12: =SUM($E$9:L9) -> 4340953.95 | M12: =SUM($E$9:M9) -> 4908274.49 | N12: =SUM($E$9:N9) -> 5481268.235 | O12: =SUM($E$9:O9) -> 6059991.917 | P12: =SUM($E$9:P9) -> 6644502.836 | Q12: =SUM($E$9:Q9) -> 7234858.865 | R12: =SUM($E$9:R9) -> 7831118.453 | S12: =SUM($E$9:S9) -> 8433340.638 | T12: =SUM($E$9:T9) -> 9041585.044 | U12: =SUM($E$9:U9) -> 9655911.895 | V12: =SUM($E$9:V9) -> 10276382.01 | W12: =SUM($E$9:W9) -> 10903056.83 | X12: =SUM($E$9:X9) -> 11535998.4 | Y12: =SUM($E$9:Y9) -> 12175269.39 | Z12: =SUM($E$9:Z9) -> 12820933.08 | AA12: =SUM($E$9:AA9) -> 13473053.41 | AB12: =SUM($E$9:AB9) -> 14131694.94 | AC12: =SUM($E$9:AC9) -> 14796922.89
A18: =Input!D26 -> Solar powered irrigation system costs
A21: =Input!C30 -> Solar panels | C21: =IF(Input!$E$8="","",Input!$E$8) -> KES | D21: =Input!E30 -> 400000 | E21: =IF(MOD(E8,Input!$G$30)=0,($D$21+E8*$B$2*$D$21),0) -> 0 | F21: =IF(MOD(F8,Input!$G$30)=0,($D$21+F8*$B$2*$D$21),0) -> 0 | G21: =IF(MOD(G8,Input!$G$30)=0,($D$21+G8*$B$2*$D$21),0) -> 0 | H21: =IF(MOD(H8,Input!$G$30)=0,($D$21+H8*$B$2*$D$21),0) -> 0 | I21: =IF(MOD(I8,Input!$G$30)=0,($D$21+I8*$B$2*$D$21),0) -> 0 | J21: =IF(MOD(J8,Input!$G$30)=0,($D$21+J8*$B$2*$D$21),0) -> 0 | K21: =IF(MOD(K8,Input!$G$30)=0,($D$21+K8*$B$2*$D$21),0) -> 0 | L21: =IF(MOD(L8,Input!$G$30)=0,($D$21+L8*$B$2*$D$21),0) -> 0 | M21: =IF(MOD(M8,Input!$G$30)=0,($D$21+M8*$B$2*$D$21),0) -> 0 | N21: =IF(MOD(N8,Input!$G$30)=0,($D$21+N8*$B$2*$D$21),0) -> 0 | O21: =IF(MOD(O8,Input!$G$30)=0,($D$21+O8*$B$2*$D$21),0) -> 0 | P21: =IF(MOD(P8,Input!$G$30)=0,($D$21+P8*$B$2*$D$21),0) -> 0 | Q21: =IF(MOD(Q8,Input!$G$30)=0,($D$21+Q8*$B$2*$D$21),0) -> 0 | R21: =IF(MOD(R8,Input!$G$30)=0,($D$21+R8*$B$2*$D$21),0) -> 0 | S21: =IF(MOD(S8,Input!$G$30)=0,($D$21+S8*$B$2*$D$21),0) -> 0 | T21: =IF(MOD(T8,Input!$G$30)=0,($D$21+T8*$B$2*$D$21),0) -> 0 | U21: =IF(MOD(U8,Input!$G$30)=0,($D$21+U8*$B$2*$D$21),0) -> 0 | V21: =IF(MOD(V8,Input!$G$30)=0,($D$21+V8*$B$2*$D$21),0) -> 0 | W21: =IF(MOD(W8,Input!$G$30)=0,($D$21+W8*$B$2*$D$21),0) -> 0 | X21: =IF(MOD(X8,Input!$G$30)=0,($D$21+X8*$B$2*$D$21),0) -> 1318400 | Y21: =IF(MOD(Y8,Input!$G$30)=0,($D$21+Y8*$B$2*$D$21),0) -> 0 | Z21: =IF(MOD(Z8,Input!$G$30)=0,($D$21+Z8*$B$2*$D$21),0) -> 0 | AA21: =IF(MOD(AA8,Input!$G$30)=0,($D$21+AA8*$B$2*$D$21),0) -> 0 | AB21: =IF(MOD(AB8,Input!$G$30)=0,($D$21+AB8*$B$2*$D$21),0) -> 0 | AC21: =IF(MOD(AC8,Input!$G$30)=0,($D$21+AC8*$B$2*$D$21),0) -> 0
A22: =Input!C31 -> Control unit | C22: =IF(Input!$E$8="","",Input!$E$8) -> KES | D22: =Input!E31 -> 50000 | E22: =IF(MOD(E8,Input!$G$31)=0,($D$22+E8*$B$2*$D$22),0) -> 0 | F22: =IF(MOD(F8,Input!$G$31)=0,($D$22+F8*$B$2*$D$22),0) -> 0 | G22: =IF(MOD(G8,Input!$G$31)=0,($D$22+G8*$B$2*$D$22),0) -> 0 | H22: =IF(MOD(H8,Input!$G$31)=0,($D$22+H8*$B$2*$D$22),0) -> 0 | I22: =IF(MOD(I8,Input!$G$31)=0,($D$22+I8*$B$2*$D$22),0) -> 78700 | J22: =IF(MOD(J8,Input!$G$31)=0,($D$22+J8*$B$2*$D$22),0) -> 0 | K22: =IF(MOD(K8,Input!$G$31)=0,($D$22+K8*$B$2*$D$22),0) -> 0 | L22: =IF(MOD(L8,Input!$G$31)=0,($D$22+L8*$B$2*$D$22),0) -> 0 | M22: =IF(MOD(M8,Input!$G$31)=0,($D$22+M8*$B$2*$D$22),0) -> 0 | N22: =IF(MOD(N8,Input!$G$31)=0,($D$22+N8*$B$2*$D$22),0) -> 107400 | O22: =IF(MOD(O8,Input!$G$31)=0,($D$22+O8*$B$2*$D$22),0) -> 0 | P22: =IF(MOD(P8,Input!$G$31)=0,($D$22+P8*$B$2*$D$22),0) -> 0 | Q22: =IF(MOD(Q8,Input!$G$31)=0,($D$22+Q8*$B$2*$D$22),0) -> 0 | R22: =IF(MOD(R8,Input!$G$31)=0,($D$22+R8*$B$2*$D$22),0) -> 0 | S22: =IF(MOD(S8,Input!$G$31)=0,($D$22+S8*$B$2*$D$22),0) -> 136100 | T22: =IF(MOD(T8,Input!$G$31)=0,($D$22+T8*$B$2*$D$22),0) -> 0 | U22: =IF(MOD(U8,Input!$G$31)=0,($D$22+U8*$B$2*$D$22),0) -> 0 | V22: =IF(MOD(V8,Input!$G$31)=0,($D$22+V8*$B$2*$D$22),0) -> 0 | W22: =IF(MOD(W8,Input!$G$31)=0,($D$22+W8*$B$2*$D$22),0) -> 0 | X22: =IF(MOD(X8,Input!$G$31)=0,($D$22+X8*$B$2*$D$22),0) -> 164800 | Y22: =IF(MOD(Y8,Input!$G$31)=0,($D$22+Y8*$B$2*$D$22),0) -> 0 | Z22: =IF(MOD(Z8,Input!$G$31)=0,($D$22+Z8*$B$2*$D$22),0) -> 0 | AA22: =IF(MOD(AA8,Input!$G$31)=0,($D$22+AA8*$B$2*$D$22),0) -> 0 | AB22: =IF(MOD(AB8,Input!$G$31)=0,($D$22+AB8*$B$2*$D$22),0) -> 0 | AC22: =IF(MOD(AC8,Input!$G$31)=0,($D$22+AC8*$B$2*$D$22),0) -> 193500
A23: =Input!C32 -> Motor Pump | C23: =IF(Input!$E$8="","",Input!$E$8) -> KES | D23: =Input!E32 -> 250000 | E23: =IF(MOD(E8,Input!$G$32)=0,($D$23+E8*$B$2*$D$23),0) -> 0 | F23: =IF(MOD(F8,Input!$G$32)=0,($D$23+F8*$B$2*$D$23),0) -> 0 | G23: =IF(MOD(G8,Input!$G$32)=0,($D$23+G8*$B$2*$D$23),0) -> 0 | H23: =IF(MOD(H8,Input!$G$32)=0,($D$23+H8*$B$2*$D$23),0) -> 0 | I23: =IF(MOD(I8,Input!$G$32)=0,($D$23+I8*$B$2*$D$23),0) -> 393500 | J23: =IF(MOD(J8,Input!$G$32)=0,($D$23+J8*$B$2*$D$23),0) -> 0 | K23: =IF(MOD(K8,Input!$G$32)=0,($D$23+K8*$B$2*$D$23),0) -> 0 | L23: =IF(MOD(L8,Input!$G$32)=0,($D$23+L8*$B$2*$D$23),0) -> 0 | M23: =IF(MOD(M8,Input!$G$32)=0,($D$23+M8*$B$2*$D$23),0) -> 0 | N23: =IF(MOD(N8,Input!$G$32)=0,($D$23+N8*$B$2*$D$23),0) -> 537000 | O23: =IF(MOD(O8,Input!$G$32)=0,($D$23+O8*$B$2*$D$23),0) -> 0 | P23: =IF(MOD(P8,Input!$G$32)=0,($D$23+P8*$B$2*$D$23),0) -> 0 | Q23: =IF(MOD(Q8,Input!$G$32)=0,($D$23+Q8*$B$2*$D$23),0) -> 0 | R23: =IF(MOD(R8,Input!$G$32)=0,($D$23+R8*$B$2*$D$23),0) -> 0 | S23: =IF(MOD(S8,Input!$G$32)=0,($D$23+S8*$B$2*$D$23),0) -> 680500 | T23: =IF(MOD(T8,Input!$G$32)=0,($D$23+T8*$B$2*$D$23),0) -> 0 | U23: =IF(MOD(U8,Input!$G$32)=0,($D$23+U8*$B$2*$D$23),0) -> 0 | V23: =IF(MOD(V8,Input!$G$32)=0,($D$23+V8*$B$2*$D$23),0) -> 0 | W23: =IF(MOD(W8,Input!$G$32)=0,($D$23+W8*$B$2*$D$23),0) -> 0 | X23: =IF(MOD(X8,Input!$G$32)=0,($D$23+X8*$B$2*$D$23),0) -> 824000 | Y23: =IF(MOD(Y8,Input!$G$32)=0,($D$23+Y8*$B$2*$D$23),0) -> 0 | Z23: =IF(MOD(Z8,Input!$G$32)=0,($D$23+Z8*$B$2*$D$23),0) -> 0 | AA23: =IF(MOD(AA8,Input!$G$32)=0,($D$23+AA8*$B$2*$D$23),0) -> 0 | AB23: =IF(MOD(AB8,Input!$G$32)=0,($D$23+AB8*$B$2*$D$23),0) -> 0 | AC23: =IF(MOD(AC8,Input!$G$32)=0,($D$23+AC8*$B$2*$D$23),0) -> 967500
A24: Wires / tubes | C24: =IF(Input!$E$8="","",Input!$E$8) -> KES | D24: =Input!E33 -> 20000 | E24: =IF(MOD(E8,Input!$G$33)=0,($D$24+E8*$B$2*$D$24),0) -> 0 | F24: =IF(MOD(F8,Input!$G$33)=0,($D$24+F8*$B$2*$D$24),0) -> 0 | G24: =IF(MOD(G8,Input!$G$33)=0,($D$24+G8*$B$2*$D$24),0) -> 0 | H24: =IF(MOD(H8,Input!$G$33)=0,($D$24+H8*$B$2*$D$24),0) -> 0 | I24: =IF(MOD(I8,Input!$G$33)=0,($D$24+I8*$B$2*$D$24),0) -> 31480 | J24: =IF(MOD(J8,Input!$G$33)=0,($D$24+J8*$B$2*$D$24),0) -> 0 | K24: =IF(MOD(K8,Input!$G$33)=0,($D$24+K8*$B$2*$D$24),0) -> 0 | L24: =IF(MOD(L8,Input!$G$33)=0,($D$24+L8*$B$2*$D$24),0) -> 0 | M24: =IF(MOD(M8,Input!$G$33)=0,($D$24+M8*$B$2*$D$24),0) -> 0 | N24: =IF(MOD(N8,Input!$G$33)=0,($D$24+N8*$B$2*$D$24),0) -> 42960 | O24: =IF(MOD(O8,Input!$G$33)=0,($D$24+O8*$B$2*$D$24),0) -> 0 | P24: =IF(MOD(P8,Input!$G$33)=0,($D$24+P8*$B$2*$D$24),0) -> 0 | Q24: =IF(MOD(Q8,Input!$G$33)=0,($D$24+Q8*$B$2*$D$24),0) -> 0 | R24: =IF(MOD(R8,Input!$G$33)=0,($D$24+R8*$B$2*$D$24),0) -> 0 | S24: =IF(MOD(S8,Input!$G$33)=0,($D$24+S8*$B$2*$D$24),0) -> 54440 | T24: =IF(MOD(T8,Input!$G$33)=0,($D$24+T8*$B$2*$D$24),0) -> 0 | U24: =IF(MOD(U8,Input!$G$33)=0,($D$24+U8*$B$2*$D$24),0) -> 0 | V24: =IF(MOD(V8,Input!$G$33)=0,($D$24+V8*$B$2*$D$24),0) -> 0 | W24: =IF(MOD(W8,Input!$G$33)=0,($D$24+W8*$B$2*$D$24),0) -> 0 | X24: =IF(MOD(X8,Input!$G$33)=0,($D$24+X8*$B$2*$D$24),0) -> 65920 | Y24: =IF(MOD(Y8,Input!$G$33)=0,($D$24+Y8*$B$2*$D$24),0) -> 0 | Z24: =IF(MOD(Z8,Input!$G$33)=0,($D$24+Z8*$B$2*$D$24),0) -> 0 | AA24: =IF(MOD(AA8,Input!$G$33)=0,($D$24+AA8*$B$2*$D$24),0) -> 0 | AB24: =IF(MOD(AB8,Input!$G$33)=0,($D$24+AB8*$B$2*$D$24),0) -> 0 | AC24: =IF(MOD(AC8,Input!$G$33)=0,($D$24+AC8*$B$2*$D$24),0) -> 77400
A25: Water storage | C25: =IF(Input!$E$8="","",Input!$E$8) -> KES | D25: =Input!E34 -> 55000 | E25: =IF(MOD(E8,Input!$G$34)=0,($D$25+E8*$B$2*$D$25),0) -> 0 | F25: =IF(MOD(F8,Input!$G$34)=0,($D$25+F8*$B$2*$D$25),0) -> 0 | G25: =IF(MOD(G8,Input!$G$34)=0,($D$25+G8*$B$2*$D$25),0) -> 0 | H25: =IF(MOD(H8,Input!$G$34)=0,($D$25+H8*$B$2*$D$25),0) -> 0 | I25: =IF(MOD(I8,Input!$G$34)=0,($D$25+I8*$B$2*$D$25),0) -> 0 | J25: =IF(MOD(J8,Input!$G$34)=0,($D$25+J8*$B$2*$D$25),0) -> 0 | K25: =IF(MOD(K8,Input!$G$34)=0,($D$25+K8*$B$2*$D$25),0) -> 0 | L25: =IF(MOD(L8,Input!$G$34)=0,($D$25+L8*$B$2*$D$25),0) -> 0 | M25: =IF(MOD(M8,Input!$G$34)=0,($D$25+M8*$B$2*$D$25),0) -> 0 | N25: =IF(MOD(N8,Input!$G$34)=0,($D$25+N8*$B$2*$D$25),0) -> 0 | O25: =IF(MOD(O8,Input!$G$34)=0,($D$25+O8*$B$2*$D$25),0) -> 0 | P25: =IF(MOD(P8,Input!$G$34)=0,($D$25+P8*$B$2*$D$25),0) -> 0 | Q25: =IF(MOD(Q8,Input!$G$34)=0,($D$25+Q8*$B$2*$D$25),0) -> 0 | R25: =IF(MOD(R8,Input!$G$34)=0,($D$25+R8*$B$2*$D$25),0) -> 0 | S25: =IF(MOD(S8,Input!$G$34)=0,($D$25+S8*$B$2*$D$25),0) -> 0 | T25: =IF(MOD(T8,Input!$G$34)=0,($D$25+T8*$B$2*$D$25),0) -> 0 | U25: =IF(MOD(U8,Input!$G$34)=0,($D$25+U8*$B$2*$D$25),0) -> 0 | V25: =IF(MOD(V8,Input!$G$34)=0,($D$25+V8*$B$2*$D$25),0) -> 0 | W25: =IF(MOD(W8,Input!$G$34)=0,($D$25+W8*$B$2*$D$25),0) -> 0 | X25: =IF(MOD(X8,Input!$G$34)=0,($D$25+X8*$B$2*$D$25),0) -> 181280 | Y25: =IF(MOD(Y8,Input!$G$34)=0,($D$25+Y8*$B$2*$D$25),0) -> 0 | Z25: =IF(MOD(Z8,Input!$G$34)=0,($D$25+Z8*$B$2*$D$25),0) -> 0 | AA25: =IF(MOD(AA8,Input!$G$34)=0,($D$25+AA8*$B$2*$D$25),0) -> 0 | AB25: =IF(MOD(AB8,Input!$G$34)=0,($D$25+AB8*$B$2*$D$25),0) -> 0 | AC25: =IF(MOD(AC8,Input!$G$34)=0,($D$25+AC8*$B$2*$D$25),0) -> 0
A26: Irrigation system | C26: =IF(Input!$E$8="","",Input!$E$8) -> KES | D26: =Input!E35 -> 80000 | E26: =IF(MOD(E8,Input!$G$35)=0,($D$26+E8*$B$2*$D$26),0) -> 0 | F26: =IF(MOD(F8,Input!$G$35)=0,($D$26+F8*$B$2*$D$26),0) -> 0 | G26: =IF(MOD(G8,Input!$G$35)=0,($D$26+G8*$B$2*$D$26),0) -> 0 | H26: =IF(MOD(H8,Input!$G$35)=0,($D$26+H8*$B$2*$D$26),0) -> 0 | I26: =IF(MOD(I8,Input!$G$35)=0,($D$26+I8*$B$2*$D$26),0) -> 125920 | J26: =IF(MOD(J8,Input!$G$35)=0,($D$26+J8*$B$2*$D$26),0) -> 0 | K26: =IF(MOD(K8,Input!$G$35)=0,($D$26+K8*$B$2*$D$26),0) -> 0 | L26: =IF(MOD(L8,Input!$G$35)=0,($D$26+L8*$B$2*$D$26),0) -> 0 | M26: =IF(MOD(M8,Input!$G$35)=0,($D$26+M8*$B$2*$D$26),0) -> 0 | N26: =IF(MOD(N8,Input!$G$35)=0,($D$26+N8*$B$2*$D$26),0) -> 171840 | O26: =IF(MOD(O8,Input!$G$35)=0,($D$26+O8*$B$2*$D$26),0) -> 0 | P26: =IF(MOD(P8,Input!$G$35)=0,($D$26+P8*$B$2*$D$26),0) -> 0 | Q26: =IF(MOD(Q8,Input!$G$35)=0,($D$26+Q8*$B$2*$D$26),0) -> 0 | R26: =IF(MOD(R8,Input!$G$35)=0,($D$26+R8*$B$2*$D$26),0) -> 0 | S26: =IF(MOD(S8,Input!$G$35)=0,($D$26+S8*$B$2*$D$26),0) -> 217760 | T26: =IF(MOD(T8,Input!$G$35)=0,($D$26+T8*$B$2*$D$26),0) -> 0 | U26: =IF(MOD(U8,Input!$G$35)=0,($D$26+U8*$B$2*$D$26),0) -> 0 | V26: =IF(MOD(V8,Input!$G$35)=0,($D$26+V8*$B$2*$D$26),0) -> 0 | W26: =IF(MOD(W8,Input!$G$35)=0,($D$26+W8*$B$2*$D$26),0) -> 0 | X26: =IF(MOD(X8,Input!$G$35)=0,($D$26+X8*$B$2*$D$26),0) -> 263680 | Y26: =IF(MOD(Y8,Input!$G$35)=0,($D$26+Y8*$B$2*$D$26),0) -> 0 | Z26: =IF(MOD(Z8,Input!$G$35)=0,($D$26+Z8*$B$2*$D$26),0) -> 0 | AA26: =IF(MOD(AA8,Input!$G$35)=0,($D$26+AA8*$B$2*$D$26),0) -> 0 | AB26: =IF(MOD(AB8,Input!$G$35)=0,($D$26+AB8*$B$2*$D$26),0) -> 0 | AC26: =IF(MOD(AC8,Input!$G$35)=0,($D$26+AC8*$B$2*$D$26),0) -> 309600
A27: Drilling | C27: =IF(Input!$E$8="","",Input!$E$8) -> KES | D27: =Input!E36 -> 0
A28: Installation | C28: =IF(Input!$E$8="","",Input!$E$8) -> KES | D28: =Input!E37 -> 25000
A29: Other Costs | C29: =IF(Input!$E$8="","",Input!$E$8) -> KES | D29: =Input!E38 -> 0
A30: Loan Repayment | C30: =IF(Input!$E$8="","",Input!$E$8) -> KES | D30: 0 | E30: =IF(E8<='Loan Repayment Solar'!Loan_Years,'Loan Repayment Solar'!Scheduled_Monthly_Payment,0) -> 0 | F30: =IF(F8<='Loan Repayment Solar'!Loan_Years,'Loan Repayment Solar'!Scheduled_Monthly_Payment,0) -> 0 | G30: =IF(G8<='Loan Repayment Solar'!Loan_Years,'Loan Repayment Solar'!Scheduled_Monthly_Payment,0) -> 0 | H30: =IF(H8<='Loan Repayment Solar'!Loan_Years,'Loan Repayment Solar'!Scheduled_Monthly_Payment,0) -> 0 | I30: =IF(I8<='Loan Repayment Solar'!Loan_Years,'Loan Repayment Solar'!Scheduled_Monthly_Payment,0) -> 0 | J30: =IF(J8<='Loan Repayment Solar'!Loan_Years,'Loan Repayment Solar'!Scheduled_Monthly_Payment,0) -> 0 | K30: =IF(K8<='Loan Repayment Solar'!Loan_Years,'Loan Repayment Solar'!Scheduled_Monthly_Payment,0) -> 0 | L30: =IF(L8<='Loan Repayment Solar'!Loan_Years,'Loan Repayment Solar'!Scheduled_Monthly_Payment,0) -> 0 | M30: =IF(M8<='Loan Repayment Solar'!Loan_Years,'Loan Repayment Solar'!Scheduled_Monthly_Payment,0) -> 0 | N30: =IF(N8<='Loan Repayment Solar'!Loan_Years,'Loan Repayment Solar'!Scheduled_Monthly_Payment,0) -> 0 | O30: =IF(O8<='Loan Repayment Solar'!Loan_Years,'Loan Repayment Solar'!Scheduled_Monthly_Payment,0) -> 0 | P30: =IF(P8<='Loan Repayment Solar'!Loan_Years,'Loan Repayment Solar'!Scheduled_Monthly_Payment,0) -> 0 | Q30: =IF(Q8<='Loan Repayment Solar'!Loan_Years,'Loan Repayment Solar'!Scheduled_Monthly_Payment,0) -> 0 | R30: =IF(R8<='Loan Repayment Solar'!Loan_Years,'Loan Repayment Solar'!Scheduled_Monthly_Payment,0) -> 0 | S30: =IF(S8<='Loan Repayment Solar'!Loan_Years,'Loan Repayment Solar'!Scheduled_Monthly_Payment,0) -> 0 | T30: =IF(T8<='Loan Repayment Solar'!Loan_Years,'Loan Repayment Solar'!Scheduled_Monthly_Payment,0) -> 0 | U30: =IF(U8<='Loan Repayment Solar'!Loan_Years,'Loan Repayment Solar'!Scheduled_Monthly_Payment,0) -> 0 | V30: =IF(V8<='Loan Repayment Solar'!Loan_Years,'Loan Repayment Solar'!Scheduled_Monthly_Payment,0) -> 0 | W30: =IF(W8<='Loan Repayment Solar'!Loan_Years,'Loan Repayment Solar'!Scheduled_Monthly_Payment,0) -> 0 | X30: =IF(X8<='Loan Repayment Solar'!Loan_Years,'Loan Repayment Solar'!Scheduled_Monthly_Payment,0) -> 0 | Y30: =IF(Y8<='Loan Repayment Solar'!Loan_Years,'Loan Repayment Solar'!Scheduled_Monthly_Payment,0) -> 0 | Z30: =IF(Z8<='Loan Repayment Solar'!Loan_Years,'Loan Repayment Solar'!Scheduled_Monthly_Payment,0) -> 0 | AA30: =IF(AA8<='Loan Repayment Solar'!Loan_Years,'Loan Repayment Solar'!Scheduled_Monthly_Payment,0) -> 0 | AB30: =IF(AB8<='Loan Repayment Solar'!Loan_Years,'Loan Repayment Solar'!Scheduled_Monthly_Payment,0) -> 0 | AC30: =IF(AC8<='Loan Repayment Solar'!Loan_Years,'Loan Repayment Solar'!Scheduled_Monthly_Payment,0) -> 0
A31: Energy costs (fuel or electricity): | C31: =IF(Input!$E$8="","",Input!$E$8) -> KES | D31: 0 | E31: =Input!E41 -> 0 | F31: =E31*(1+(1*$B$4)) -> 0 | G31: =F31*(1+(1*$B$4)) -> 0 | H31: 0 | I31: 0 | J31: 0 | K31: 0 | L31: 0 | M31: 0 | N31: 0 | O31: 0 | P31: 0 | Q31: 0 | R31: 0 | S31: 0 | T31: 0 | U31: 0 | V31: 0 | W31: 0 | X31: 0 | Y31: 0 | Z31: 0 | AA31: 0 | AB31: 0 | AC31: 0
A32: Operating Costs: | C32: =IF(Input!$E$8="","",Input!$E$8) -> KES | D32: 0 | E32: =SUM(Input!E42:E43) -> 6000 | F32: =E32*(1+(1*$B$2)) -> 6688.8 | G32: 7456.67424 | H32: 8312.700443 | I32: 9266.998454 | J32: 10330.84988 | K32: 11516.83144 | L32: 12838.96369 | M32: 14312.87672 | N32: 15955.99497 | O32: 17787.74319 | P32: 19829.77611 | Q32: 22106.23441 | R32: 24644.03012 | S32: 27473.16478 | T32: 30627.08409 | U32: 34143.07335 | V32: 38062.69817 | W32: 42432.29592 | X32: 47303.52349 | Y32: 52733.96799 | Z32: 58787.82751 | AA32: 65536.67011 | AB32: 73060.27984 | AC32: 81447.59996
A35: Gross Expenses System per year: | C35: =IF(Input!$E$8="","",Input!$E$8) -> KES | D35: =SUM(D21:D29) -> 880000 | E35: =E31+E32+SUMIF(E21:E30,"<1E+307") -> 6000 | F35: =F31+F32+SUMIF(F21:F30,"<1E+307") -> 6688.8 | G35: 7456.67424 | H35: 8312.700443 | I35: 638866.9985 | J35: 10330.84988 | K35: 11516.83144 | L35: 12838.96369 | M35: 14312.87672 | N35: 875155.995 | O35: 17787.74319 | P35: 19829.77611 | Q35: 22106.23441 | R35: 24644.03012 | S35: 1116273.165 | T35: 30627.08409 | U35: 34143.07335 | V35: 38062.69817 | W35: 42432.29592 | X35: 2865383.523 | Y35: 52733.96799 | Z35: 58787.82751 | AA35: 65536.67011 | AB35: 73060.27984 | AC35: 1629447.6
A38: Cash Flow: | D38: =D9-D35 -> -880000 | E38: =E9-E35 -> 517911 | F38: 522461.31 | G38: 526984.9369 | H38: 531473.3268 | I38: -93683.11097 | J38: 540304.8765 | K38: 544625.2522 | L38: 548864.5408 | M38: 553007.6628 | N38: -302162.2501 | O38: 560935.9392 | P38: 564681.1431 | Q38: 568249.794 | R38: 571615.5585 | S38: -514050.9802 | T38: 577617.3223 | U38: 580183.7771 | V38: =V9-V35 -> 582407.4208 | W38: 584242.5242 | X38: -2232441.955 | Y38: 586537.016 | Z38: 586875.8663 | AA38: 586583.6607 | AB38: 585581.2543 | AC38: -964219.6505
A41: Annual System Costs (average) | B41: =SUM(D35:X35)/20 -> 334138.5157 | C41: =IF(Input!$E$8="","",Input!$E$8) -> KES
A43: System Life Cycle Costs | B43: =X44 -> 6682770.313 | C43: =IF(Input!$E$8="","",Input!$E$8) -> KES | D43: =IF($A$44=TRUE,D44,NA()) -> 880000 | E43: =IF($A$44=TRUE,E44,NA()) -> 886000 | F43: 892688.8 | G43: 900145.4742 | H43: 908458.1747 | I43: 1547325.173 | J43: 1557656.023 | K43: 1569172.854 | L43: 1582011.818 | M43: 1596324.695 | N43: 2471480.69 | O43: 2489268.433 | P43: 2509098.209 | Q43: 2531204.444 | R43: 2555848.474 | S43: 3672121.638 | T43: 3702748.723 | U43: 3736891.796 | V43: 3774954.494 | W43: 3817386.79 | X43: 6682770.313 | Y43: 6735504.281 | Z43: 6794292.109 | AA43: 6859828.779 | AB43: 6932889.059 | AC43: 8562336.659
A44: TRUE | D44: =D35 -> 880000 | E44: =SUM($D$35:E35) -> 886000 | F44: =SUM($D$35:F35) -> 892688.8 | G44: =SUM($D$35:G35) -> 900145.4742 | H44: =SUM($D$35:H35) -> 908458.1747 | I44: =SUM($D$35:I35) -> 1547325.173 | J44: =SUM($D$35:J35) -> 1557656.023 | K44: =SUM($D$35:K35) -> 1569172.854 | L44: =SUM($D$35:L35) -> 1582011.818 | M44: =SUM($D$35:M35) -> 1596324.695 | N44: =SUM($D$35:N35) -> 2471480.69 | O44: =SUM($D$35:O35) -> 2489268.433 | P44: =SUM($D$35:P35) -> 2509098.209 | Q44: =SUM($D$35:Q35) -> 2531204.444 | R44: =SUM($D$35:R35) -> 2555848.474 | S44: =SUM($D$35:S35) -> 3672121.638 | T44: =SUM($D$35:T35) -> 3702748.723 | U44: =SUM($D$35:U35) -> 3736891.796 | V44: =SUM($D$35:V35) -> 3774954.494 | W44: =SUM($D$35:W35) -> 3817386.79 | X44: =SUM($D$35:X35) -> 6682770.313 | Y44: =SUM($D$35:Y35) -> 6735504.281 | Z44: =SUM($D$35:Z35) -> 6794292.109 | AA44: =SUM($D$35:AA35) -> 6859828.779 | AB44: =SUM($D$35:AB35) -> 6932889.059 | AC44: =SUM($D$35:AC35) -> 8562336.659
A46: NPV | B46: =Input!E12 -> 0.16 | C46: =NPV(B46,E38:X38)+D38 -> 1564105.618
A47: IRR | C47: =IRR(D38:X38) -> 0.5453239553
A54: =Input!D55 -> Grid powered irrigation system costs
A57: =Input!C59 -> Inverter | C57: =IF(Input!$E$8="","",Input!$E$8) -> KES | D57: =Input!E59 -> 0 | E57: =IF(MOD(E8,Input!$G$59)=0,($D$57+E8*$B$2*$D$57),0) ->  | F57: =IF(MOD(F8,Input!$G$59)=0,($D$57+F8*$B$2*$D$57),0) ->  | G57: =IF(MOD(G8,Input!$G$59)=0,($D$57+G8*$B$2*$D$57),0) ->  | H57: =IF(MOD(H8,Input!$G$59)=0,($D$57+H8*$B$2*$D$57),0) ->  | I57: =IF(MOD(I8,Input!$G$59)=0,($D$57+I8*$B$2*$D$57),0) ->  | J57: =IF(MOD(J8,Input!$G$59)=0,($D$57+J8*$B$2*$D$57),0) ->  | K57: =IF(MOD(K8,Input!$G$59)=0,($D$57+K8*$B$2*$D$57),0) ->  | L57: =IF(MOD(L8,Input!$G$59)=0,($D$57+L8*$B$2*$D$57),0) ->  | M57: =IF(MOD(M8,Input!$G$59)=0,($D$57+M8*$B$2*$D$57),0) ->  | N57: =IF(MOD(N8,Input!$G$59)=0,($D$57+N8*$B$2*$D$57),0) ->  | O57: =IF(MOD(O8,Input!$G$59)=0,($D$57+O8*$B$2*$D$57),0) ->  | P57: =IF(MOD(P8,Input!$G$59)=0,($D$57+P8*$B$2*$D$57),0) ->  | Q57: =IF(MOD(Q8,Input!$G$59)=0,($D$57+Q8*$B$2*$D$57),0) ->  | R57: =IF(MOD(R8,Input!$G$59)=0,($D$57+R8*$B$2*$D$57),0) ->  | S57: =IF(MOD(S8,Input!$G$59)=0,($D$57+S8*$B$2*$D$57),0) ->  | T57: =IF(MOD(T8,Input!$G$59)=0,($D$57+T8*$B$2*$D$57),0) ->  | U57: =IF(MOD(U8,Input!$G$59)=0,($D$57+U8*$B$2*$D$57),0) ->  | V57: =IF(MOD(V8,Input!$G$59)=0,($D$57+V8*$B$2*$D$57),0) ->  | W57: =IF(MOD(W8,Input!$G$59)=0,($D$57+W8*$B$2*$D$57),0) ->  | X57: =IF(MOD(X8,Input!$G$59)=0,($D$57+X8*$B$2*$D$57),0) ->  | Y57: =IF(MOD(Y8,Input!$G$59)=0,($D$57+Y8*$B$2*$D$57),0) ->  | Z57: =IF(MOD(Z8,Input!$G$59)=0,($D$57+Z8*$B$2*$D$57),0) ->  | AA57: =IF(MOD(AA8,Input!$G$59)=0,($D$57+AA8*$B$2*$D$57),0) ->  | AB57: =IF(MOD(AB8,Input!$G$59)=0,($D$57+AB8*$B$2*$D$57),0) ->  | AC57: =IF(MOD(AC8,Input!$G$59)=0,($D$57+AC8*$B$2*$D$57),0) -> 
A58: =Input!C60 -> Control unit | C58: =IF(Input!$E$8="","",Input!$E$8) -> KES | D58: =Input!E60 -> 0 | E58: =IF(MOD(E8,Input!$G$60)=0,($D$58+E8*$B$2*$D$58),0) ->  | F58: =IF(MOD(F8,Input!$G$60)=0,($D$58+F8*$B$2*$D$58),0) ->  | G58: =IF(MOD(G8,Input!$G$60)=0,($D$58+G8*$B$2*$D$58),0) ->  | H58: =IF(MOD(H8,Input!$G$60)=0,($D$58+H8*$B$2*$D$58),0) ->  | I58: =IF(MOD(I8,Input!$G$60)=0,($D$58+I8*$B$2*$D$58),0) ->  | J58: =IF(MOD(J8,Input!$G$60)=0,($D$58+J8*$B$2*$D$58),0) ->  | K58: =IF(MOD(K8,Input!$G$60)=0,($D$58+K8*$B$2*$D$58),0) ->  | L58: =IF(MOD(L8,Input!$G$60)=0,($D$58+L8*$B$2*$D$58),0) ->  | M58: =IF(MOD(M8,Input!$G$60)=0,($D$58+M8*$B$2*$D$58),0) ->  | N58: =IF(MOD(N8,Input!$G$60)=0,($D$58+N8*$B$2*$D$58),0) ->  | O58: =IF(MOD(O8,Input!$G$60)=0,($D$58+O8*$B$2*$D$58),0) ->  | P58: =IF(MOD(P8,Input!$G$60)=0,($D$58+P8*$B$2*$D$58),0) ->  | Q58: =IF(MOD(Q8,Input!$G$60)=0,($D$58+Q8*$B$2*$D$58),0) ->  | R58: =IF(MOD(R8,Input!$G$60)=0,($D$58+R8*$B$2*$D$58),0) ->  | S58: =IF(MOD(S8,Input!$G$60)=0,($D$58+S8*$B$2*$D$58),0) ->  | T58: =IF(MOD(T8,Input!$G$60)=0,($D$58+T8*$B$2*$D$58),0) ->  | U58: =IF(MOD(U8,Input!$G$60)=0,($D$58+U8*$B$2*$D$58),0) ->  | V58: =IF(MOD(V8,Input!$G$60)=0,($D$58+V8*$B$2*$D$58),0) ->  | W58: =IF(MOD(W8,Input!$G$60)=0,($D$58+W8*$B$2*$D$58),0) ->  | X58: =IF(MOD(X8,Input!$G$60)=0,($D$58+X8*$B$2*$D$58),0) ->  | Y58: =IF(MOD(Y8,Input!$G$60)=0,($D$58+Y8*$B$2*$D$58),0) ->  | Z58: =IF(MOD(Z8,Input!$G$60)=0,($D$58+Z8*$B$2*$D$58),0) ->  | AA58: =IF(MOD(AA8,Input!$G$60)=0,($D$58+AA8*$B$2*$D$58),0) ->  | AB58: =IF(MOD(AB8,Input!$G$60)=0,($D$58+AB8*$B$2*$D$58),0) ->  | AC58: =IF(MOD(AC8,Input!$G$60)=0,($D$58+AC8*$B$2*$D$58),0) -> 
A59: =Input!C61 -> Motor Pump | C59: =IF(Input!$E$8="","",Input!$E$8) -> KES | D59: =Input!E61 -> 150000 | E59: =IF(MOD(E8,Input!$G$61)=0,($D$59+E8*$B$2*$D$59),0) -> 0 | F59: =IF(MOD(F8,Input!$G$61)=0,($D$59+F8*$B$2*$D$59),0) -> 0 | G59: =IF(MOD(G8,Input!$G$61)=0,($D$59+G8*$B$2*$D$59),0) -> 0 | H59: =IF(MOD(H8,Input!$G$61)=0,($D$59+H8*$B$2*$D$59),0) -> 0 | I59: =IF(MOD(I8,Input!$G$61)=0,($D$59+I8*$B$2*$D$59),0) -> 236100 | J59: =IF(MOD(J8,Input!$G$61)=0,($D$59+J8*$B$2*$D$59),0) -> 0 | K59: =IF(MOD(K8,Input!$G$61)=0,($D$59+K8*$B$2*$D$59),0) -> 0 | L59: =IF(MOD(L8,Input!$G$61)=0,($D$59+L8*$B$2*$D$59),0) -> 0 | M59: =IF(MOD(M8,Input!$G$61)=0,($D$59+M8*$B$2*$D$59),0) -> 0 | N59: =IF(MOD(N8,Input!$G$61)=0,($D$59+N8*$B$2*$D$59),0) -> 322200 | O59: =IF(MOD(O8,Input!$G$61)=0,($D$59+O8*$B$2*$D$59),0) -> 0 | P59: =IF(MOD(P8,Input!$G$61)=0,($D$59+P8*$B$2*$D$59),0) -> 0 | Q59: =IF(MOD(Q8,Input!$G$61)=0,($D$59+Q8*$B$2*$D$59),0) -> 0 | R59: =IF(MOD(R8,Input!$G$61)=0,($D$59+R8*$B$2*$D$59),0) -> 0 | S59: =IF(MOD(S8,Input!$G$61)=0,($D$59+S8*$B$2*$D$59),0) -> 408300 | T59: =IF(MOD(T8,Input!$G$61)=0,($D$59+T8*$B$2*$D$59),0) -> 0 | U59: =IF(MOD(U8,Input!$G$61)=0,($D$59+U8*$B$2*$D$59),0) -> 0 | V59: =IF(MOD(V8,Input!$G$61)=0,($D$59+V8*$B$2*$D$59),0) -> 0 | W59: =IF(MOD(W8,Input!$G$61)=0,($D$59+W8*$B$2*$D$59),0) -> 0 | X59: =IF(MOD(X8,Input!$G$61)=0,($D$59+X8*$B$2*$D$59),0) -> 494400 | Y59: =IF(MOD(Y8,Input!$G$61)=0,($D$59+Y8*$B$2*$D$59),0) -> 0 | Z59: =IF(MOD(Z8,Input!$G$61)=0,($D$59+Z8*$B$2*$D$59),0) -> 0 | AA59: =IF(MOD(AA8,Input!$G$61)=0,($D$59+AA8*$B$2*$D$59),0) -> 0 | AB59: =IF(MOD(AB8,Input!$G$61)=0,($D$59+AB8*$B$2*$D$59),0) -> 0 | AC59: =IF(MOD(AC8,Input!$G$61)=0,($D$59+AC8*$B$2*$D$59),0) -> 580500
A60: Wires / tubes | C60: =IF(Input!$E$8="","",Input!$E$8) -> KES | D60: =Input!E62 -> 50000 | E60: =IF(MOD(E8,Input!$G$62)=0,($D$60+E8*$B$2*$D$60),0) -> 0 | F60: =IF(MOD(F8,Input!$G$62)=0,($D$60+F8*$B$2*$D$60),0) -> 0 | G60: =IF(MOD(G8,Input!$G$62)=0,($D$60+G8*$B$2*$D$60),0) -> 0 | H60: =IF(MOD(H8,Input!$G$62)=0,($D$60+H8*$B$2*$D$60),0) -> 0 | I60: =IF(MOD(I8,Input!$G$62)=0,($D$60+I8*$B$2*$D$60),0) -> 78700 | J60: =IF(MOD(J8,Input!$G$62)=0,($D$60+J8*$B$2*$D$60),0) -> 0 | K60: =IF(MOD(K8,Input!$G$62)=0,($D$60+K8*$B$2*$D$60),0) -> 0 | L60: =IF(MOD(L8,Input!$G$62)=0,($D$60+L8*$B$2*$D$60),0) -> 0 | M60: =IF(MOD(M8,Input!$G$62)=0,($D$60+M8*$B$2*$D$60),0) -> 0 | N60: =IF(MOD(N8,Input!$G$62)=0,($D$60+N8*$B$2*$D$60),0) -> 107400 | O60: =IF(MOD(O8,Input!$G$62)=0,($D$60+O8*$B$2*$D$60),0) -> 0 | P60: =IF(MOD(P8,Input!$G$62)=0,($D$60+P8*$B$2*$D$60),0) -> 0 | Q60: =IF(MOD(Q8,Input!$G$62)=0,($D$60+Q8*$B$2*$D$60),0) -> 0 | R60: =IF(MOD(R8,Input!$G$62)=0,($D$60+R8*$B$2*$D$60),0) -> 0 | S60: =IF(MOD(S8,Input!$G$62)=0,($D$60+S8*$B$2*$D$60),0) -> 136100 | T60: =IF(MOD(T8,Input!$G$62)=0,($D$60+T8*$B$2*$D$60),0) -> 0 | U60: =IF(MOD(U8,Input!$G$62)=0,($D$60+U8*$B$2*$D$60),0) -> 0 | V60: =IF(MOD(V8,Input!$G$62)=0,($D$60+V8*$B$2*$D$60),0) -> 0 | W60: =IF(MOD(W8,Input!$G$62)=0,($D$60+W8*$B$2*$D$60),0) -> 0 | X60: =IF(MOD(X8,Input!$G$62)=0,($D$60+X8*$B$2*$D$60),0) -> 164800 | Y60: =IF(MOD(Y8,Input!$G$62)=0,($D$60+Y8*$B$2*$D$60),0) -> 0 | Z60: =IF(MOD(Z8,Input!$G$62)=0,($D$60+Z8*$B$2*$D$60),0) -> 0 | AA60: =IF(MOD(AA8,Input!$G$62)=0,($D$60+AA8*$B$2*$D$60),0) -> 0 | AB60: =IF(MOD(AB8,Input!$G$62)=0,($D$60+AB8*$B$2*$D$60),0) -> 0 | AC60: =IF(MOD(AC8,Input!$G$62)=0,($D$60+AC8*$B$2*$D$60),0) -> 193500
A61: =Input!C63 -> Water storage | C61: =IF(Input!$E$8="","",Input!$E$8) -> KES | D61: =Input!E63 -> 55000 | E61: =IF(MOD(E8,Input!$G$63)=0,($D$61+E8*$B$2*$D$61),0) -> 0 | F61: =IF(MOD(F8,Input!$G$63)=0,($D$61+F8*$B$2*$D$61),0) -> 0 | G61: =IF(MOD(G8,Input!$G$63)=0,($D$61+G8*$B$2*$D$61),0) -> 0 | H61: =IF(MOD(H8,Input!$G$63)=0,($D$61+H8*$B$2*$D$61),0) -> 0 | I61: =IF(MOD(I8,Input!$G$63)=0,($D$61+I8*$B$2*$D$61),0) -> 0 | J61: =IF(MOD(J8,Input!$G$63)=0,($D$61+J8*$B$2*$D$61),0) -> 0 | K61: =IF(MOD(K8,Input!$G$63)=0,($D$61+K8*$B$2*$D$61),0) -> 0 | L61: =IF(MOD(L8,Input!$G$63)=0,($D$61+L8*$B$2*$D$61),0) -> 0 | M61: =IF(MOD(M8,Input!$G$63)=0,($D$61+M8*$B$2*$D$61),0) -> 0 | N61: =IF(MOD(N8,Input!$G$63)=0,($D$61+N8*$B$2*$D$61),0) -> 0 | O61: =IF(MOD(O8,Input!$G$63)=0,($D$61+O8*$B$2*$D$61),0) -> 0 | P61: =IF(MOD(P8,Input!$G$63)=0,($D$61+P8*$B$2*$D$61),0) -> 0 | Q61: =IF(MOD(Q8,Input!$G$63)=0,($D$61+Q8*$B$2*$D$61),0) -> 0 | R61: =IF(MOD(R8,Input!$G$63)=0,($D$61+R8*$B$2*$D$61),0) -> 0 | S61: =IF(MOD(S8,Input!$G$63)=0,($D$61+S8*$B$2*$D$61),0) -> 0 | T61: =IF(MOD(T8,Input!$G$63)=0,($D$61+T8*$B$2*$D$61),0) -> 0 | U61: =IF(MOD(U8,Input!$G$63)=0,($D$61+U8*$B$2*$D$61),0) -> 0 | V61: =IF(MOD(V8,Input!$G$63)=0,($D$61+V8*$B$2*$D$61),0) -> 0 | W61: =IF(MOD(W8,Input!$G$63)=0,($D$61+W8*$B$2*$D$61),0) -> 0 | X61: =IF(MOD(X8,Input!$G$63)=0,($D$61+X8*$B$2*$D$61),0) -> 181280 | Y61: =IF(MOD(Y8,Input!$G$63)=0,($D$61+Y8*$B$2*$D$61),0) -> 0 | Z61: =IF(MOD(Z8,Input!$G$63)=0,($D$61+Z8*$B$2*$D$61),0) -> 0 | AA61: =IF(MOD(AA8,Input!$G$63)=0,($D$61+AA8*$B$2*$D$61),0) -> 0 | AB61: =IF(MOD(AB8,Input!$G$63)=0,($D$61+AB8*$B$2*$D$61),0) -> 0 | AC61: =IF(MOD(AC8,Input!$G$63)=0,($D$61+AC8*$B$2*$D$61),0) -> 0
A62: Irrigation system | C62: =IF(Input!$E$8="","",Input!$E$8) -> KES | D62: =Input!E64 -> 80000 | E62: =IF(MOD(E8,Input!$G$64)=0,($D$62+E8*$B$2*$D$62),0) -> 0 | F62: =IF(MOD(F8,Input!$G$64)=0,($D$62+F8*$B$2*$D$62),0) -> 0 | G62: =IF(MOD(G8,Input!$G$64)=0,($D$62+G8*$B$2*$D$62),0) -> 0 | H62: =IF(MOD(H8,Input!$G$64)=0,($D$62+H8*$B$2*$D$62),0) -> 0 | I62: =IF(MOD(I8,Input!$G$64)=0,($D$62+I8*$B$2*$D$62),0) -> 125920 | J62: =IF(MOD(J8,Input!$G$64)=0,($D$62+J8*$B$2*$D$62),0) -> 0 | K62: =IF(MOD(K8,Input!$G$64)=0,($D$62+K8*$B$2*$D$62),0) -> 0 | L62: =IF(MOD(L8,Input!$G$64)=0,($D$62+L8*$B$2*$D$62),0) -> 0 | M62: =IF(MOD(M8,Input!$G$64)=0,($D$62+M8*$B$2*$D$62),0) -> 0 | N62: =IF(MOD(N8,Input!$G$64)=0,($D$62+N8*$B$2*$D$62),0) -> 171840 | O62: =IF(MOD(O8,Input!$G$64)=0,($D$62+O8*$B$2*$D$62),0) -> 0 | P62: =IF(MOD(P8,Input!$G$64)=0,($D$62+P8*$B$2*$D$62),0) -> 0 | Q62: =IF(MOD(Q8,Input!$G$64)=0,($D$62+Q8*$B$2*$D$62),0) -> 0 | R62: =IF(MOD(R8,Input!$G$64)=0,($D$62+R8*$B$2*$D$62),0) -> 0 | S62: =IF(MOD(S8,Input!$G$64)=0,($D$62+S8*$B$2*$D$62),0) -> 217760 | T62: =IF(MOD(T8,Input!$G$64)=0,($D$62+T8*$B$2*$D$62),0) -> 0 | U62: =IF(MOD(U8,Input!$G$64)=0,($D$62+U8*$B$2*$D$62),0) -> 0 | V62: =IF(MOD(V8,Input!$G$64)=0,($D$62+V8*$B$2*$D$62),0) -> 0 | W62: =IF(MOD(W8,Input!$G$64)=0,($D$62+W8*$B$2*$D$62),0) -> 0 | X62: =IF(MOD(X8,Input!$G$64)=0,($D$62+X8*$B$2*$D$62),0) -> 263680 | Y62: =IF(MOD(Y8,Input!$G$64)=0,($D$62+Y8*$B$2*$D$62),0) -> 0 | Z62: =IF(MOD(Z8,Input!$G$64)=0,($D$62+Z8*$B$2*$D$62),0) -> 0 | AA62: =IF(MOD(AA8,Input!$G$64)=0,($D$62+AA8*$B$2*$D$62),0) -> 0 | AB62: =IF(MOD(AB8,Input!$G$64)=0,($D$62+AB8*$B$2*$D$62),0) -> 0 | AC62: =IF(MOD(AC8,Input!$G$64)=0,($D$62+AC8*$B$2*$D$62),0) -> 309600
A63: Drilling | C63: =IF(Input!$E$8="","",Input!$E$8) -> KES | D63: =Input!E65 -> 0
A64: Installation | C64: =IF(Input!$E$8="","",Input!$E$8) -> KES | D64: =Input!E66 -> 15000
A65: Other Costs | C65: =IF(Input!$E$8="","",Input!$E$8) -> KES | D65: =Input!E67 -> 0
A66: Loan Repayment | C66: =IF(Input!$E$8="","",Input!$E$8) -> KES | D66: 0 | E66: =IF(E8<='Loan Repayment Grid'!Loan_Years,'Loan Repayment Grid'!Scheduled_Monthly_Payment,0) -> 0 | F66: =IF(F8<='Loan Repayment Grid'!Loan_Years,'Loan Repayment Grid'!Scheduled_Monthly_Payment,0) -> 0 | G66: =IF(G8<='Loan Repayment Grid'!Loan_Years,'Loan Repayment Grid'!Scheduled_Monthly_Payment,0) -> 0 | H66: =IF(H8<='Loan Repayment Grid'!Loan_Years,'Loan Repayment Grid'!Scheduled_Monthly_Payment,0) -> 0 | I66: =IF(I8<='Loan Repayment Grid'!Loan_Years,'Loan Repayment Grid'!Scheduled_Monthly_Payment,0) -> 0 | J66: =IF(J8<='Loan Repayment Grid'!Loan_Years,'Loan Repayment Grid'!Scheduled_Monthly_Payment,0) -> 0 | K66: =IF(K8<='Loan Repayment Grid'!Loan_Years,'Loan Repayment Grid'!Scheduled_Monthly_Payment,0) -> 0 | L66: =IF(L8<='Loan Repayment Grid'!Loan_Years,'Loan Repayment Grid'!Scheduled_Monthly_Payment,0) -> 0 | M66: =IF(M8<='Loan Repayment Grid'!Loan_Years,'Loan Repayment Grid'!Scheduled_Monthly_Payment,0) -> 0 | N66: =IF(N8<='Loan Repayment Grid'!Loan_Years,'Loan Repayment Grid'!Scheduled_Monthly_Payment,0) -> 0 | O66: =IF(O8<='Loan Repayment Grid'!Loan_Years,'Loan Repayment Grid'!Scheduled_Monthly_Payment,0) -> 0 | P66: =IF(P8<='Loan Repayment Grid'!Loan_Years,'Loan Repayment Grid'!Scheduled_Monthly_Payment,0) -> 0 | Q66: =IF(Q8<='Loan Repayment Grid'!Loan_Years,'Loan Repayment Grid'!Scheduled_Monthly_Payment,0) -> 0 | R66: =IF(R8<='Loan Repayment Grid'!Loan_Years,'Loan Repayment Grid'!Scheduled_Monthly_Payment,0) -> 0 | S66: =IF(S8<='Loan Repayment Grid'!Loan_Years,'Loan Repayment Grid'!Scheduled_Monthly_Payment,0) -> 0 | T66: =IF(T8<='Loan Repayment Grid'!Loan_Years,'Loan Repayment Grid'!Scheduled_Monthly_Payment,0) -> 0 | U66: =IF(U8<='Loan Repayment Grid'!Loan_Years,'Loan Repayment Grid'!Scheduled_Monthly_Payment,0) -> 0 | V66: =IF(V8<='Loan Repayment Grid'!Loan_Years,'Loan Repayment Grid'!Scheduled_Monthly_Payment,0) -> 0 | W66: =IF(W8<='Loan Repayment Grid'!Loan_Years,'Loan Repayment Grid'!Scheduled_Monthly_Payment,0) -> 0 | X66: =IF(X8<='Loan Repayment Grid'!Loan_Years,'Loan Repayment Grid'!Scheduled_Monthly_Payment,0) -> 0 | Y66: =IF(Y8<='Loan Repayment Grid'!Loan_Years,'Loan Repayment Grid'!Scheduled_Monthly_Payment,0) -> 0 | Z66: =IF(Z8<='Loan Repayment Grid'!Loan_Years,'Loan Repayment Grid'!Scheduled_Monthly_Payment,0) -> 0 | AA66: =IF(AA8<='Loan Repayment Grid'!Loan_Years,'Loan Repayment Grid'!Scheduled_Monthly_Payment,0) -> 0 | AB66: =IF(AB8<='Loan Repayment Grid'!Loan_Years,'Loan Repayment Grid'!Scheduled_Monthly_Payment,0) -> 0 | AC66: =IF(AC8<='Loan Repayment Grid'!Loan_Years,'Loan Repayment Grid'!Scheduled_Monthly_Payment,0) -> 0
A67: Energy costs (fuel or electricity): | C67: =IF(Input!$E$8="","",Input!$E$8) -> KES | D67: 0 | E67: =Input!E72 -> 13474.5 | F67: =E67*(1+(1*$B$4)) -> 13991.9208 | G67: =F67*(1+(1*$B$4)) -> 14529.21056 | H67: 15087.13224 | I67: 15666.47812 | J67: 16268.07088 | K67: 16892.7648 | L67: 17541.44697 | M67: 18215.03854 | N67: 18914.49602 | O67: 19640.81266 | P67: 20395.01987 | Q67: 21178.18863 | R67: 21991.43108 | S67: 22835.90203 | T67: 23712.80067 | U67: 24623.37221 | V67: 25568.90971 | W67: 26550.75584 | X67: 27570.30486 | Y67: 28629.00457 | Z67: 29728.35834 | AA67: 30869.92731 | AB67: 32055.33251 | AC67: 33286.25728
A68: Operating Costs: | C68: =IF(Input!$E$8="","",Input!$E$8) -> KES | D68: 0 | E68: =SUM(Input!E73:E74) -> 5000 | F68: =E68*(1+(1*$B$2)) -> 5574 | G68: 6213.8952 | H68: 6927.250369 | I68: 7722.498711 | J68: 8609.041563 | K68: 9597.359535 | L68: 10699.13641 | M68: 11927.39727 | N68: 13296.66248 | O68: 14823.11933 | P68: 16524.81343 | Q68: 18421.86201 | R68: 20536.69177 | S68: 22894.30398 | T68: 25522.57008 | U68: 28452.56112 | V68: 31718.91514 | W68: 35360.2466 | X68: 39419.60291 | Y68: 43944.97332 | Z68: 48989.85626 | AA68: 54613.89176 | AB68: 60883.56653 | AC68: 67872.99997
A71: Gross Expenses System per year: | C71: =IF(Input!$E$8="","",Input!$E$8) -> KES | D71: =SUM(D57:D65) -> 350000 | E71: =E67+E68+SUMIF(E57:E66,"<1E+307") -> 18474.5 | F71: =F67+F68+SUMIF(F57:F66,"<1E+307") -> 19565.9208 | G71: 20743.10576 | H71: 22014.38261 | I71: 464108.9768 | J71: 24877.11245 | K71: 26490.12434 | L71: 28240.58338 | M71: 30142.43581 | N71: 633651.1585 | O71: 34463.93199 | P71: 36919.8333 | Q71: 39600.05064 | R71: 42528.12284 | S71: 807890.206 | T71: 49235.37075 | U71: 53075.93334 | V71: 57287.82485 | W71: 61911.00244 | X71: 1171149.908 | Y71: 72573.97789 | Z71: 78718.2146 | AA71: 85483.81906 | AB71: 92938.89905 | AC71: 1184759.257
A74: Cash Flow: | C74: =IF(Input!$E$8="","",Input!$E$8) -> KES | D74: =D9-D71 -> -350000 | E74: =E9-E71 -> 505436.5 | F74: =F9-F71 -> 509584.1892 | G74: 513698.5053 | H74: 517771.6446 | I74: 81074.91065 | J74: 525758.6139 | K74: 529651.9593 | L74: 533462.9211 | M74: 537178.1037 | N74: -60657.41359 | O74: 544259.7504 | P74: 547591.0859 | Q74: 550755.9777 | R74: 553731.4658 | S74: -205668.0215 | T74: 559009.0356 | U74: 561250.9171 | V74: 563182.2941 | W74: 564763.8177 | X74: -538208.3394 | Y74: 566697.0061 | Z74: 566945.4793 | AA74: 566636.5117 | AB74: 565702.6351 | AC74: -519531.3078
A77: Annual System Costs (average) | B77: =SUM(D71:X71)/20 -> 199618.5242 | C77: =IF(Input!$E$8="","",Input!$E$8) -> KES
A79: System Life Cycle Costs | B79: =X80 -> 3992370.484 | C79: =IF(Input!$E$8="","",Input!$E$8) -> KES | D79: =IF($A$80=TRUE,D80,NA()) -> 350000 | E79: =IF($A$80=TRUE,E80,NA()) -> 368474.5 | F79: 388040.4208 | G79: 408783.5266 | H79: 430797.9092 | I79: 894906.886 | J79: 919783.9985 | K79: 946274.1228 | L79: 974514.7062 | M79: 1004657.142 | N79: 1638308.3 | O79: 1672772.232 | P79: 1709692.066 | Q79: 1749292.116 | R79: 1791820.239 | S79: 2599710.445 | T79: 2648945.816 | U79: 2702021.749 | V79: 2759309.574 | W79: 2821220.577 | X79: 3992370.484 | Y79: 4064944.462 | Z79: 4143662.677 | AA79: 4229146.496 | AB79: 4322085.395 | AC79: 5506844.652
A80: TRUE | D80: =D71 -> 350000 | E80: =SUM($D$71:E71) -> 368474.5 | F80: =SUM($D$71:F71) -> 388040.4208 | G80: =SUM($D$71:G71) -> 408783.5266 | H80: =SUM($D$71:H71) -> 430797.9092 | I80: =SUM($D$71:I71) -> 894906.886 | J80: =SUM($D$71:J71) -> 919783.9985 | K80: =SUM($D$71:K71) -> 946274.1228 | L80: =SUM($D$71:L71) -> 974514.7062 | M80: =SUM($D$71:M71) -> 1004657.142 | N80: =SUM($D$71:N71) -> 1638308.3 | O80: =SUM($D$71:O71) -> 1672772.232 | P80: =SUM($D$71:P71) -> 1709692.066 | Q80: =SUM($D$71:Q71) -> 1749292.116 | R80: =SUM($D$71:R71) -> 1791820.239 | S80: =SUM($D$71:S71) -> 2599710.445 | T80: =SUM($D$71:T71) -> 2648945.816 | U80: =SUM($D$71:U71) -> 2702021.749 | V80: =SUM($D$71:V71) -> 2759309.574 | W80: =SUM($D$71:W71) -> 2821220.577 | X80: =SUM($D$71:X71) -> 3992370.484 | Y80: =SUM($D$71:Y71) -> 4064944.462 | Z80: =SUM($D$71:Z71) -> 4143662.677 | AA80: =SUM($D$71:AA71) -> 4229146.496 | AB80: =SUM($D$71:AB71) -> 4322085.395 | AC80: =SUM($D$71:AC71) -> 5506844.652
A84: NPV | B84: =Input!E12 -> 0.16 | C84: =NPV(B84,E74:X74)+D74 -> 2279207.756
A85: IRR | C85: =IRR(D74:X74) -> 1.430755333
N92: PV | P92: Diesel
L93: Anuties of Investment | N93: =C46 -> 1564105.618 | P93: =C84 -> 2279207.756
L95: Year | N95: Annuity | O95: NPV | P95: Annuity | Q95: NPV
L96: 0
L97: 1 | N97: =PMT($B$46,$L$116,$C$46,0,0)*-1 -> 263813.053 | O97: =N97*(1.05^-L97) -> 251250.5266 | P97: =PMT($B$84,$L$116,$C$84,0,0)*-1 -> 384427.2084 | Q97: =P97*(1.06^-L97) -> 362667.1777
L98: =L97+1 -> 2 | N98: =PMT($B$46,$L$116,$C$46,0,0)*-1 -> 263813.053 | O98: =N98*(1.06^-L98) -> 234792.678 | P98: =PMT($B$84,$L$116,$C$84,0,0)*-1 -> 384427.2084 | Q98: =P98*(1.06^-L98) -> 342138.8469
L99: 3 | N99: 263813.053 | O99: 221502.5264 | P99: 384427.2084 | Q99: 322772.4971
L100: 4 | N100: 263813.053 | O100: 208964.6475 | P100: 384427.2084 | Q100: 304502.3557
L101: 5 | N101: 263813.053 | O101: 197136.4599 | P101: 384427.2084 | Q101: 287266.3733
L102: 6 | N102: 263813.053 | O102: 185977.7924 | P102: 384427.2084 | Q102: 271006.0126
L103: 7 | N103: 263813.053 | O103: 175450.7475 | P103: 384427.2084 | Q103: 255666.0496
L104: 8 | N104: 263813.053 | O104: 165519.5731 | P104: 384427.2084 | Q104: 241194.3864
L105: 9 | N105: 263813.053 | O105: 156150.5407 | P105: 384427.2084 | Q105: 227541.874
L106: 10 | N106: 263813.053 | O106: 147311.8309 | P106: 384427.2084 | Q106: 214662.1453
L107: 11 | N107: 263813.053 | O107: 138973.4253 | P107: 384427.2084 | Q107: 202511.4578
L108: 12 | N108: 263813.053 | O108: 131107.005 | P108: 384427.2084 | Q108: 191048.5451
L109: 13 | N109: 263813.053 | O109: 123685.8538 | P109: 384427.2084 | Q109: 180234.4765
L110: 14 | N110: 263813.053 | O110: 116684.7677 | P110: 384427.2084 | Q110: 170032.525
L111: 15 | N111: 263813.053 | O111: 110079.9696 | P111: 384427.2084 | Q111: 160408.0424
L112: 16 | N112: 263813.053 | O112: 103849.0279 | P112: 384427.2084 | Q112: 151328.3419
L113: 17 | N113: 263813.053 | O113: 97970.78103 | P113: 384427.2084 | Q113: 142762.5867
L114: 18 | N114: 263813.053 | O114: 92425.26512 | P114: 384427.2084 | Q114: 134681.6856
L115: 19 | N115: 263813.053 | O115: 87193.64634 | P115: 384427.2084 | Q115: 127058.194
L116: 20 | N116: 263813.053 | O116: 82258.15693 | P116: 384427.2084 | Q116: 119866.2207
L118: Total | O118: =SUM(O97:O116) -> 3028285.222 | Q118: =SUM(Q97:Q116) -> 4409349.794
A122: =Input!D87 -> Diesel powered irrigation system costs
A124: =Input!C91 -> Generator | C124: =IF(Input!$E$8="","",Input!$E$8) -> KES | D124: =Input!E91 -> 150000 | E124: =IF(MOD(E8,Input!$G$91)=0,($D$124+E8*$B$2*$D$124),0) -> 0 | F124: =IF(MOD(F8,Input!$G$91)=0,($D$124+F8*$B$2*$D$124),0) -> 0 | G124: =IF(MOD(G8,Input!$G$91)=0,($D$124+G8*$B$2*$D$124),0) -> 201660 | H124: =IF(MOD(H8,Input!$G$91)=0,($D$124+H8*$B$2*$D$124),0) -> 0 | I124: =IF(MOD(I8,Input!$G$91)=0,($D$124+I8*$B$2*$D$124),0) -> 0 | J124: =IF(MOD(J8,Input!$G$91)=0,($D$124+J8*$B$2*$D$124),0) -> 253320 | K124: =IF(MOD(K8,Input!$G$91)=0,($D$124+K8*$B$2*$D$124),0) -> 0 | L124: =IF(MOD(L8,Input!$G$91)=0,($D$124+L8*$B$2*$D$124),0) -> 0 | M124: =IF(MOD(M8,Input!$G$91)=0,($D$124+M8*$B$2*$D$124),0) -> 304980 | N124: =IF(MOD(N8,Input!$G$91)=0,($D$124+N8*$B$2*$D$124),0) -> 0 | O124: =IF(MOD(O8,Input!$G$91)=0,($D$124+O8*$B$2*$D$124),0) -> 0 | P124: =IF(MOD(P8,Input!$G$91)=0,($D$124+P8*$B$2*$D$124),0) -> 356640 | Q124: =IF(MOD(Q8,Input!$G$91)=0,($D$124+Q8*$B$2*$D$124),0) -> 0 | R124: =IF(MOD(R8,Input!$G$91)=0,($D$124+R8*$B$2*$D$124),0) -> 0 | S124: =IF(MOD(S8,Input!$G$91)=0,($D$124+S8*$B$2*$D$124),0) -> 408300 | T124: =IF(MOD(T8,Input!$G$91)=0,($D$124+T8*$B$2*$D$124),0) -> 0 | U124: =IF(MOD(U8,Input!$G$91)=0,($D$124+U8*$B$2*$D$124),0) -> 0 | V124: =IF(MOD(V8,Input!$G$91)=0,($D$124+V8*$B$2*$D$124),0) -> 459960 | W124: =IF(MOD(W8,Input!$G$91)=0,($D$124+W8*$B$2*$D$124),0) -> 0 | X124: =IF(MOD(X8,Input!$G$91)=0,($D$124+X8*$B$2*$D$124),0) -> 0 | Y124: =IF(MOD(Y8,Input!$G$91)=0,($D$124+Y8*$B$2*$D$124),0) -> 511620 | Z124: =IF(MOD(Z8,Input!$G$91)=0,($D$124+Z8*$B$2*$D$124),0) -> 0 | AA124: =IF(MOD(AA8,Input!$G$91)=0,($D$124+AA8*$B$2*$D$124),0) -> 0 | AB124: =IF(MOD(AB8,Input!$G$91)=0,($D$124+AB8*$B$2*$D$124),0) -> 563280 | AC124: =IF(MOD(AC8,Input!$G$91)=0,($D$124+AC8*$B$2*$D$124),0) -> 0
A125: =Input!C92 -> Pump | C125: =IF(Input!$E$8="","",Input!$E$8) -> KES | D125: =Input!E92 -> 150000 | E125: =IF(MOD(E8,Input!$G$92)=0,($D$125+E8*$B$2*$D$125),0) -> 0 | F125: =IF(MOD(F8,Input!$G$92)=0,($D$125+F8*$B$2*$D$125),0) -> 0 | G125: =IF(MOD(G8,Input!$G$92)=0,($D$125+G8*$B$2*$D$125),0) -> 0 | H125: =IF(MOD(H8,Input!$G$92)=0,($D$125+H8*$B$2*$D$125),0) -> 0 | I125: =IF(MOD(I8,Input!$G$92)=0,($D$125+I8*$B$2*$D$125),0) -> 236100 | J125: =IF(MOD(J8,Input!$G$92)=0,($D$125+J8*$B$2*$D$125),0) -> 0 | K125: =IF(MOD(K8,Input!$G$92)=0,($D$125+K8*$B$2*$D$125),0) -> 0 | L125: =IF(MOD(L8,Input!$G$92)=0,($D$125+L8*$B$2*$D$125),0) -> 0 | M125: =IF(MOD(M8,Input!$G$92)=0,($D$125+M8*$B$2*$D$125),0) -> 0 | N125: =IF(MOD(N8,Input!$G$92)=0,($D$125+N8*$B$2*$D$125),0) -> 322200 | O125: =IF(MOD(O8,Input!$G$92)=0,($D$125+O8*$B$2*$D$125),0) -> 0 | P125: =IF(MOD(P8,Input!$G$92)=0,($D$125+P8*$B$2*$D$125),0) -> 0 | Q125: =IF(MOD(Q8,Input!$G$92)=0,($D$125+Q8*$B$2*$D$125),0) -> 0 | R125: =IF(MOD(R8,Input!$G$92)=0,($D$125+R8*$B$2*$D$125),0) -> 0 | S125: =IF(MOD(S8,Input!$G$92)=0,($D$125+S8*$B$2*$D$125),0) -> 408300 | T125: =IF(MOD(T8,Input!$G$92)=0,($D$125+T8*$B$2*$D$125),0) -> 0 | U125: =IF(MOD(U8,Input!$G$92)=0,($D$125+U8*$B$2*$D$125),0) -> 0 | V125: =IF(MOD(V8,Input!$G$92)=0,($D$125+V8*$B$2*$D$125),0) -> 0 | W125: =IF(MOD(W8,Input!$G$92)=0,($D$125+W8*$B$2*$D$125),0) -> 0 | X125: =IF(MOD(X8,Input!$G$92)=0,($D$125+X8*$B$2*$D$125),0) -> 494400 | Y125: =IF(MOD(Y8,Input!$G$92)=0,($D$125+Y8*$B$2*$D$125),0) -> 0 | Z125: =IF(MOD(Z8,Input!$G$92)=0,($D$125+Z8*$B$2*$D$125),0) -> 0 | AA125: =IF(MOD(AA8,Input!$G$92)=0,($D$125+AA8*$B$2*$D$125),0) -> 0 | AB125: =IF(MOD(AB8,Input!$G$92)=0,($D$125+AB8*$B$2*$D$125),0) -> 0 | AC125: =IF(MOD(AC8,Input!$G$92)=0,($D$125+AC8*$B$2*$D$125),0) -> 580500
A126: Wires / tubes | C126: =IF(Input!$E$8="","",Input!$E$8) -> KES | D126: =Input!E93 -> 50000 | E126: =IF(MOD(E8,Input!$G$93)=0,($D$126+E8*$B$2*$D$126),0) -> 0 | F126: =IF(MOD(F8,Input!$G$93)=0,($D$126+F8*$B$2*$D$126),0) -> 0 | G126: =IF(MOD(G8,Input!$G$93)=0,($D$126+G8*$B$2*$D$126),0) -> 0 | H126: =IF(MOD(H8,Input!$G$93)=0,($D$126+H8*$B$2*$D$126),0) -> 0 | I126: =IF(MOD(I8,Input!$G$93)=0,($D$126+I8*$B$2*$D$126),0) -> 78700 | J126: =IF(MOD(J8,Input!$G$93)=0,($D$126+J8*$B$2*$D$126),0) -> 0 | K126: =IF(MOD(K8,Input!$G$93)=0,($D$126+K8*$B$2*$D$126),0) -> 0 | L126: =IF(MOD(L8,Input!$G$93)=0,($D$126+L8*$B$2*$D$126),0) -> 0 | M126: =IF(MOD(M8,Input!$G$93)=0,($D$126+M8*$B$2*$D$126),0) -> 0 | N126: =IF(MOD(N8,Input!$G$93)=0,($D$126+N8*$B$2*$D$126),0) -> 107400 | O126: =IF(MOD(O8,Input!$G$93)=0,($D$126+O8*$B$2*$D$126),0) -> 0 | P126: =IF(MOD(P8,Input!$G$93)=0,($D$126+P8*$B$2*$D$126),0) -> 0 | Q126: =IF(MOD(Q8,Input!$G$93)=0,($D$126+Q8*$B$2*$D$126),0) -> 0 | R126: =IF(MOD(R8,Input!$G$93)=0,($D$126+R8*$B$2*$D$126),0) -> 0 | S126: =IF(MOD(S8,Input!$G$93)=0,($D$126+S8*$B$2*$D$126),0) -> 136100 | T126: =IF(MOD(T8,Input!$G$93)=0,($D$126+T8*$B$2*$D$126),0) -> 0 | U126: =IF(MOD(U8,Input!$G$93)=0,($D$126+U8*$B$2*$D$126),0) -> 0 | V126: =IF(MOD(V8,Input!$G$93)=0,($D$126+V8*$B$2*$D$126),0) -> 0 | W126: =IF(MOD(W8,Input!$G$93)=0,($D$126+W8*$B$2*$D$126),0) -> 0 | X126: =IF(MOD(X8,Input!$G$93)=0,($D$126+X8*$B$2*$D$126),0) -> 164800 | Y126: =IF(MOD(Y8,Input!$G$93)=0,($D$126+Y8*$B$2*$D$126),0) -> 0 | Z126: =IF(MOD(Z8,Input!$G$93)=0,($D$126+Z8*$B$2*$D$126),0) -> 0 | AA126: =IF(MOD(AA8,Input!$G$93)=0,($D$126+AA8*$B$2*$D$126),0) -> 0 | AB126: =IF(MOD(AB8,Input!$G$93)=0,($D$126+AB8*$B$2*$D$126),0) -> 0 | AC126: =IF(MOD(AC8,Input!$G$93)=0,($D$126+AC8*$B$2*$D$126),0) -> 193500
A127: =Input!C94 -> Water storage | C127: =IF(Input!$E$8="","",Input!$E$8) -> KES | D127: =Input!E94 -> 55000 | E127: =IF(MOD(E8,Input!$G$94)=0,($D$127+E8*$B$2*$D$127),0) -> 0 | F127: =IF(MOD(F8,Input!$G$94)=0,($D$127+F8*$B$2*$D$127),0) -> 0 | G127: =IF(MOD(G8,Input!$G$94)=0,($D$127+G8*$B$2*$D$127),0) -> 0 | H127: =IF(MOD(H8,Input!$G$94)=0,($D$127+H8*$B$2*$D$127),0) -> 0 | I127: =IF(MOD(I8,Input!$G$94)=0,($D$127+I8*$B$2*$D$127),0) -> 0 | J127: =IF(MOD(J8,Input!$G$94)=0,($D$127+J8*$B$2*$D$127),0) -> 0 | K127: =IF(MOD(K8,Input!$G$94)=0,($D$127+K8*$B$2*$D$127),0) -> 0 | L127: =IF(MOD(L8,Input!$G$94)=0,($D$127+L8*$B$2*$D$127),0) -> 0 | M127: =IF(MOD(M8,Input!$G$94)=0,($D$127+M8*$B$2*$D$127),0) -> 0 | N127: =IF(MOD(N8,Input!$G$94)=0,($D$127+N8*$B$2*$D$127),0) -> 0 | O127: =IF(MOD(O8,Input!$G$94)=0,($D$127+O8*$B$2*$D$127),0) -> 0 | P127: =IF(MOD(P8,Input!$G$94)=0,($D$127+P8*$B$2*$D$127),0) -> 0 | Q127: =IF(MOD(Q8,Input!$G$94)=0,($D$127+Q8*$B$2*$D$127),0) -> 0 | R127: =IF(MOD(R8,Input!$G$94)=0,($D$127+R8*$B$2*$D$127),0) -> 0 | S127: =IF(MOD(S8,Input!$G$94)=0,($D$127+S8*$B$2*$D$127),0) -> 0 | T127: =IF(MOD(T8,Input!$G$94)=0,($D$127+T8*$B$2*$D$127),0) -> 0 | U127: =IF(MOD(U8,Input!$G$94)=0,($D$127+U8*$B$2*$D$127),0) -> 0 | V127: =IF(MOD(V8,Input!$G$94)=0,($D$127+V8*$B$2*$D$127),0) -> 0 | W127: =IF(MOD(W8,Input!$G$94)=0,($D$127+W8*$B$2*$D$127),0) -> 0 | X127: =IF(MOD(X8,Input!$G$94)=0,($D$127+X8*$B$2*$D$127),0) -> 181280 | Y127: =IF(MOD(Y8,Input!$G$94)=0,($D$127+Y8*$B$2*$D$127),0) -> 0 | Z127: =IF(MOD(Z8,Input!$G$94)=0,($D$127+Z8*$B$2*$D$127),0) -> 0 | AA127: =IF(MOD(AA8,Input!$G$94)=0,($D$127+AA8*$B$2*$D$127),0) -> 0 | AB127: =IF(MOD(AB8,Input!$G$94)=0,($D$127+AB8*$B$2*$D$127),0) -> 0 | AC127: =IF(MOD(AC8,Input!$G$94)=0,($D$127+AC8*$B$2*$D$127),0) -> 0
A128: Irrigation system | C128: =IF(Input!$E$8="","",Input!$E$8) -> KES | D128: =Input!E95 -> 80000 | E128: =IF(MOD(E8,Input!$G$95)=0,($D$128+E8*$B$2*$D$128),0) -> 0 | F128: =IF(MOD(F8,Input!$G$95)=0,($D$128+F8*$B$2*$D$128),0) -> 0 | G128: =IF(MOD(G8,Input!$G$95)=0,($D$128+G8*$B$2*$D$128),0) -> 0 | H128: =IF(MOD(H8,Input!$G$95)=0,($D$128+H8*$B$2*$D$128),0) -> 0 | I128: =IF(MOD(I8,Input!$G$95)=0,($D$128+I8*$B$2*$D$128),0) -> 125920 | J128: =IF(MOD(J8,Input!$G$95)=0,($D$128+J8*$B$2*$D$128),0) -> 0 | K128: =IF(MOD(K8,Input!$G$95)=0,($D$128+K8*$B$2*$D$128),0) -> 0 | L128: =IF(MOD(L8,Input!$G$95)=0,($D$128+L8*$B$2*$D$128),0) -> 0 | M128: =IF(MOD(M8,Input!$G$95)=0,($D$128+M8*$B$2*$D$128),0) -> 0 | N128: =IF(MOD(N8,Input!$G$95)=0,($D$128+N8*$B$2*$D$128),0) -> 171840 | O128: =IF(MOD(O8,Input!$G$95)=0,($D$128+O8*$B$2*$D$128),0) -> 0 | P128: =IF(MOD(P8,Input!$G$95)=0,($D$128+P8*$B$2*$D$128),0) -> 0 | Q128: =IF(MOD(Q8,Input!$G$95)=0,($D$128+Q8*$B$2*$D$128),0) -> 0 | R128: =IF(MOD(R8,Input!$G$95)=0,($D$128+R8*$B$2*$D$128),0) -> 0 | S128: =IF(MOD(S8,Input!$G$95)=0,($D$128+S8*$B$2*$D$128),0) -> 217760 | T128: =IF(MOD(T8,Input!$G$95)=0,($D$128+T8*$B$2*$D$128),0) -> 0 | U128: =IF(MOD(U8,Input!$G$95)=0,($D$128+U8*$B$2*$D$128),0) -> 0 | V128: =IF(MOD(V8,Input!$G$95)=0,($D$128+V8*$B$2*$D$128),0) -> 0 | W128: =IF(MOD(W8,Input!$G$95)=0,($D$128+W8*$B$2*$D$128),0) -> 0 | X128: =IF(MOD(X8,Input!$G$95)=0,($D$128+X8*$B$2*$D$128),0) -> 263680 | Y128: =IF(MOD(Y8,Input!$G$95)=0,($D$128+Y8*$B$2*$D$128),0) -> 0 | Z128: =IF(MOD(Z8,Input!$G$95)=0,($D$128+Z8*$B$2*$D$128),0) -> 0 | AA128: =IF(MOD(AA8,Input!$G$95)=0,($D$128+AA8*$B$2*$D$128),0) -> 0 | AB128: =IF(MOD(AB8,Input!$G$95)=0,($D$128+AB8*$B$2*$D$128),0) -> 0 | AC128: =IF(MOD(AC8,Input!$G$95)=0,($D$128+AC8*$B$2*$D$128),0) -> 309600
A129: Drilling | C129: =IF(Input!$E$8="","",Input!$E$8) -> KES | D129: =Input!E96 -> 0
A130: Installation | C130: =IF(Input!$E$8="","",Input!$E$8) -> KES | D130: =Input!E97 -> 25000
A131: Other Costs | C131: =IF(Input!$E$8="","",Input!$E$8) -> KES | D131: =Input!E98 -> 0
A132: Loan Repayment | C132: =IF(Input!$E$8="","",Input!$E$8) -> KES | D132: 0 | E132: =IF(E8<='Loan Repayment Diesel'!Loan_Years,'Loan Repayment Diesel'!Scheduled_Monthly_Payment,0) -> 0 | F132: =IF(F8<='Loan Repayment Diesel'!Loan_Years,'Loan Repayment Diesel'!Scheduled_Monthly_Payment,0) -> 0 | G132: =IF(G8<='Loan Repayment Diesel'!Loan_Years,'Loan Repayment Diesel'!Scheduled_Monthly_Payment,0) -> 0 | H132: =IF(H8<='Loan Repayment Diesel'!Loan_Years,'Loan Repayment Diesel'!Scheduled_Monthly_Payment,0) -> 0 | I132: =IF(I8<='Loan Repayment Diesel'!Loan_Years,'Loan Repayment Diesel'!Scheduled_Monthly_Payment,0) -> 0 | J132: =IF(J8<='Loan Repayment Diesel'!Loan_Years,'Loan Repayment Diesel'!Scheduled_Monthly_Payment,0) -> 0 | K132: =IF(K8<='Loan Repayment Diesel'!Loan_Years,'Loan Repayment Diesel'!Scheduled_Monthly_Payment,0) -> 0 | L132: =IF(L8<='Loan Repayment Diesel'!Loan_Years,'Loan Repayment Diesel'!Scheduled_Monthly_Payment,0) -> 0 | M132: =IF(M8<='Loan Repayment Diesel'!Loan_Years,'Loan Repayment Diesel'!Scheduled_Monthly_Payment,0) -> 0 | N132: =IF(N8<='Loan Repayment Diesel'!Loan_Years,'Loan Repayment Diesel'!Scheduled_Monthly_Payment,0) -> 0 | O132: =IF(O8<='Loan Repayment Diesel'!Loan_Years,'Loan Repayment Diesel'!Scheduled_Monthly_Payment,0) -> 0 | P132: =IF(P8<='Loan Repayment Diesel'!Loan_Years,'Loan Repayment Diesel'!Scheduled_Monthly_Payment,0) -> 0 | Q132: =IF(Q8<='Loan Repayment Diesel'!Loan_Years,'Loan Repayment Diesel'!Scheduled_Monthly_Payment,0) -> 0 | R132: =IF(R8<='Loan Repayment Diesel'!Loan_Years,'Loan Repayment Diesel'!Scheduled_Monthly_Payment,0) -> 0 | S132: =IF(S8<='Loan Repayment Diesel'!Loan_Years,'Loan Repayment Diesel'!Scheduled_Monthly_Payment,0) -> 0 | T132: =IF(T8<='Loan Repayment Diesel'!Loan_Years,'Loan Repayment Diesel'!Scheduled_Monthly_Payment,0) -> 0 | U132: =IF(U8<='Loan Repayment Diesel'!Loan_Years,'Loan Repayment Diesel'!Scheduled_Monthly_Payment,0) -> 0 | V132: =IF(V8<='Loan Repayment Diesel'!Loan_Years,'Loan Repayment Diesel'!Scheduled_Monthly_Payment,0) -> 0 | W132: =IF(W8<='Loan Repayment Diesel'!Loan_Years,'Loan Repayment Diesel'!Scheduled_Monthly_Payment,0) -> 0 | X132: =IF(X8<='Loan Repayment Diesel'!Loan_Years,'Loan Repayment Diesel'!Scheduled_Monthly_Payment,0) -> 0 | Y132: =IF(Y8<='Loan Repayment Diesel'!Loan_Years,'Loan Repayment Diesel'!Scheduled_Monthly_Payment,0) -> 0 | Z132: =IF(Z8<='Loan Repayment Diesel'!Loan_Years,'Loan Repayment Diesel'!Scheduled_Monthly_Payment,0) -> 0 | AA132: =IF(AA8<='Loan Repayment Diesel'!Loan_Years,'Loan Repayment Diesel'!Scheduled_Monthly_Payment,0) -> 0 | AB132: =IF(AB8<='Loan Repayment Diesel'!Loan_Years,'Loan Repayment Diesel'!Scheduled_Monthly_Payment,0) -> 0 | AC132: =IF(AC8<='Loan Repayment Diesel'!Loan_Years,'Loan Repayment Diesel'!Scheduled_Monthly_Payment,0) -> 0
A133: Energy costs (fuel or electricity): | C133: =IF(Input!$E$8="","",Input!$E$8) -> KES | D133: 0 | E133: =Input!E103 -> 68466.66667 | F133: =E133*(1+(1*$B$4)) -> 71095.78667 | G133: =F133*(1+(1*$B$4)) -> 73825.86487 | H133: =G133*(1+(1*$B$4)) -> 76660.77809 | I133: =H133*(1+(1*$B$4)) -> 79604.55196 | J133: =I133*(1+(1*$B$4)) -> 82661.36676 | K133: =J133*(1+(1*$B$4)) -> 85835.56324 | L133: =K133*(1+(1*$B$4)) -> 89131.64887 | M133: =L133*(1+(1*$B$4)) -> 92554.30419 | N133: =M133*(1+(1*$B$4)) -> 96108.38947 | O133: =N133*(1+(1*$B$4)) -> 99798.95163 | P133: =O133*(1+(1*$B$4)) -> 103631.2314 | Q133: =P133*(1+(1*$B$4)) -> 107610.6707 | R133: =Q133*(1+(1*$B$4)) -> 111742.9204 | S133: =R133*(1+(1*$B$4)) -> 116033.8485 | T133: =S133*(1+(1*$B$4)) -> 120489.5483 | U133: =T133*(1+(1*$B$4)) -> 125116.347 | V133: =U133*(1+(1*$B$4)) -> 129920.8147 | W133: =V133*(1+(1*$B$4)) -> 134909.774 | X133: =W133*(1+(1*$B$4)) -> 140090.3093 | Y133: =X133*(1+(1*$B$4)) -> 145469.7772 | Z133: =Y133*(1+(1*$B$4)) -> 151055.8166 | AA133: =Z133*(1+(1*$B$4)) -> 156856.36 | AB133: =AA133*(1+(1*$B$4)) -> 162879.6442 | AC133: =AB133*(1+(1*$B$4)) -> 169134.2226
A134: Operating Costs: | C134: =IF(Input!$E$8="","",Input!$E$8) -> KES | D134: 0 | E134: =SUM(Input!E104:E105) -> 30000 | F134: =E134*(1+(1*$B$2)) -> 33444 | G134: =F134*(1+(1*$B$2)) -> 37283.3712 | H134: =G134*(1+(1*$B$2)) -> 41563.50221 | I134: =H134*(1+(1*$B$2)) -> 46334.99227 | J134: =I134*(1+(1*$B$2)) -> 51654.24938 | K134: =J134*(1+(1*$B$2)) -> 57584.15721 | L134: =K134*(1+(1*$B$2)) -> 64194.81846 | M134: =L134*(1+(1*$B$2)) -> 71564.38362 | N134: =M134*(1+(1*$B$2)) -> 79779.97485 | O134: =N134*(1+(1*$B$2)) -> 88938.71597 | P134: =O134*(1+(1*$B$2)) -> 99148.88056 | Q134: =P134*(1+(1*$B$2)) -> 110531.172 | R134: =Q134*(1+(1*$B$2)) -> 123220.1506 | S134: =R134*(1+(1*$B$2)) -> 137365.8239 | T134: =S134*(1+(1*$B$2)) -> 153135.4205 | U134: =T134*(1+(1*$B$2)) -> 170715.3667 | V134: =U134*(1+(1*$B$2)) -> 190313.4908 | W134: =V134*(1+(1*$B$2)) -> 212161.4796 | X134: =W134*(1+(1*$B$2)) -> 236517.6175 | Y134: =X134*(1+(1*$B$2)) -> 263669.8399 | Z134: =Y134*(1+(1*$B$2)) -> 293939.1376 | AA134: =Z134*(1+(1*$B$2)) -> 327683.3506 | AB134: =AA134*(1+(1*$B$2)) -> 365301.3992 | AC134: =AB134*(1+(1*$B$2)) -> 407237.9998
A137: Gross Expenses System per year: | C137: =IF(Input!$E$8="","",Input!$E$8) -> KES | D137: =SUM(D124:D131) -> 510000 | E137: =E133+E134+SUMIF(E124:E132,"<1E+307") -> 98466.66667 | F137: =F133+F134+SUMIF(F124:F132,"<1E+307") -> 104539.7867 | G137: 312769.2361 | H137: 118224.2803 | I137: 566659.5442 | J137: 387635.6161 | K137: 143419.7205 | L137: 153326.4673 | M137: 469098.6878 | N137: 777328.3643 | O137: 188737.6676 | P137: 559420.1119 | Q137: 218141.8427 | R137: 234963.071 | S137: 1423859.672 | T137: 273624.9688 | U137: 295831.7137 | V137: 780194.3056 | W137: 347071.2536 | X137: 1480767.927 | Y137: 920759.6171 | Z137: 444994.9542 | AA137: =AA133+AA134+SUMIF(AA124:AA132,"<1E+307") -> 484539.7106 | AB137: 1091461.043 | AC137: 1659972.222
A140: Cash Flow: | C140: =IF(Input!$E$8="","",Input!$E$8) -> KES | D140: =D9-D137 -> -510000 | E140: =E9-E137 -> 425444.3333 | F140: 424610.3233 | G140: 221672.375 | H140: 421561.7469 | I140: -21475.65675 | J140: 163000.1102 | K140: 412722.3632 | L140: 408377.0371 | M140: 98221.8517 | N140: -204334.6194 | O140: 389986.0148 | P140: 25090.80724 | Q140: 372214.1857 | R140: 361296.5176 | S140: -821637.4879 | T140: 334619.4376 | U140: 318495.1367 | V140: -159724.1866 | W140: 279603.5665 | X140: -847826.3584 | Y140: -281488.6331 | Z140: 200668.7397 | AA140: 167580.6202 | AB140: -432819.5093 | AC140: -994744.2729
A143: Annual System Costs (average) | B143: =SUM(D137:X137)/20 -> 472204.0452 | C143: =IF(Input!$E$8="","",Input!$E$8) -> KES
A145: System Life Cycle Costs | B145: =X146 -> 9444080.904 | C145: =IF(Input!$E$8="","",Input!$E$8) -> KES | D145: =IF($A$146=TRUE,D146,NA()) -> 510000 | E145: =IF($A$146=TRUE,E146,NA()) -> 608466.6667 | F145: 713006.4533 | G145: 1025775.689 | H145: 1143999.97 | I145: 1710659.514 | J145: 2098295.13 | K145: 2241714.851 | L145: 2395041.318 | M145: 2864140.006 | N145: 3641468.37 | O145: 3830206.038 | P145: 4389626.15 | Q145: 4607767.992 | R145: 4842731.063 | S145: 6266590.736 | T145: 6540215.704 | U145: 6836047.418 | V145: 7616241.724 | W145: 7963312.977 | X145: 9444080.904 | Y145: 10364840.52 | Z145: 10809835.48 | AA145: 11294375.19 | AB145: 12385836.23 | AC145: 14045808.45
A146: TRUE | D146: =D137 -> 510000 | E146: =SUM($D$137:E137) -> 608466.6667 | F146: =SUM($D$137:F137) -> 713006.4533 | G146: =SUM($D$137:G137) -> 1025775.689 | H146: =SUM($D$137:H137) -> 1143999.97 | I146: =SUM($D$137:I137) -> 1710659.514 | J146: =SUM($D$137:J137) -> 2098295.13 | K146: =SUM($D$137:K137) -> 2241714.851 | L146: =SUM($D$137:L137) -> 2395041.318 | M146: =SUM($D$137:M137) -> 2864140.006 | N146: =SUM($D$137:N137) -> 3641468.37 | O146: =SUM($D$137:O137) -> 3830206.038 | P146: =SUM($D$137:P137) -> 4389626.15 | Q146: =SUM($D$137:Q137) -> 4607767.992 | R146: =SUM($D$137:R137) -> 4842731.063 | S146: =SUM($D$137:S137) -> 6266590.736 | T146: =SUM($D$137:T137) -> 6540215.704 | U146: =SUM($D$137:U137) -> 6836047.418 | V146: =SUM($D$137:V137) -> 7616241.724 | W146: =SUM($D$137:W137) -> 7963312.977 | X146: =SUM($D$137:X137) -> 9444080.904 | Y146: =SUM($D$137:Y137) -> 10364840.52 | Z146: =SUM($D$137:Z137) -> 10809835.48 | AA146: =SUM($D$137:AA137) -> 11294375.19 | AB146: =SUM($D$137:AB137) -> 12385836.23 | AC146: =SUM($D$137:AC137) -> 14045808.45
A150: NPV | B150: =Input!E12 -> 0.16 | C150: =NPV(B150,E140:X140)+D140 -> 963725.4829
A151: IRR | C151: =IRR(D140:X140) -> 0.7087265803
F176: Diagramms (Output) - Number:
E180: =Output!A49 -> Net Present Value (NPV) | H180: =Output!A47 -> Internal Rate of Return (IRR) | K180: =Output!A53 -> System Life Cycle Costs | N180: =Output!A51 -> Annual System Costs (average)
E182: =Input!D26 -> Solar powered irrigation system costs | F182: =C46 -> 1564105.618 | H182: =Input!D26 -> Solar powered irrigation system costs | I182: =C47 -> 0.5453239553 | K182: =Input!D26 -> Solar powered irrigation system costs | L182: =B43 -> 6682770.313 | N182: =Input!D26 -> Solar powered irrigation system costs | O182: =B41 -> 334138.5157
E183: =Input!D55 -> Grid powered irrigation system costs | F183: =C84 -> 2279207.756 | H183: =Input!D55 -> Grid powered irrigation system costs | I183: =C85 -> 1.430755333 | K183: =Input!D55 -> Grid powered irrigation system costs | L183: =B79 -> 3992370.484 | N183: =Input!D55 -> Grid powered irrigation system costs | O183: =B77 -> 199618.5242
E184: =Input!D87 -> Diesel powered irrigation system costs | F184: =C150 -> 963725.4829 | H184: =Input!D87 -> Diesel powered irrigation system costs | I184: =C151 -> 0.7087265803 | K184: =Input!D87 -> Diesel powered irrigation system costs | L184: =B145 -> 9444080.904 | N184: =Input!D87 -> Diesel powered irrigation system costs | O184: =B143 -> 472204.0452
E185: =" " & Input!E8 -> KES | H185: % | K185: =" " & Input!E8 -> KES | N185: =" " & Input!E8 -> KES
E187: ="Irrigation system: comparative accumulated income and costs in " & E185 -> Irrigation system: comparative accumulated income and costs in KES
J190: Connections:
E191: =Input!D26 -> Solar powered irrigation system costs | J191: =Input!E8 & "/kWh" -> KES/kWh
E192: =Input!D55 -> Grid powered irrigation system costs | J192: =Input!E8 & "/l" -> KES/l

Sheet Loan Repayment Solar (hidden)
A1: Loan Repayment: | F1: =Input!D26 -> Solar powered irrigation system costs
A2: Bank: | B2: =Input!E51 -> 0
B9: Enter Values | F9: Loan Summary
C10: Loan Amount | D10: =Input!E48 -> 0 | G10: Scheduled Payment | H10: =IF(Values_Entered,-PMT(Interest_Rate/Num_Pmt_Per_Year,Loan_Years*Num_Pmt_Per_Year,Loan_Amount),"0") -> 0
C11: Annual Interest Rate | D11: =Input!E49 -> 0 | G11: Scheduled Number of Payments | H11: =IF(Values_Entered,Loan_Years*Num_Pmt_Per_Year,"") -> 
C12: Loan Period in Years | D12: =Input!E50 -> 0 | G12: Actual Number of Payments | H12: =IF(Values_Entered,Number_of_Payments,"") -> 
C13: Number of Payments Per Year | D13: 1 | G13: Total Early Payments | H13: =IF(Values_Entered,SUMIF(Beg_Bal,">0",Extra_Pay),"") -> 
C14: Start Date of Loan | D14: 2017-01-01 | G14: Total Interest | H14: =IF(Values_Entered,SUMIF(Beg_Bal,">0",Int),"") -> 
C15: Optional Extra Payments | D15: 0
A18: PmtNo. | B18: Payment Date | C18: Beginning Balance | D18: Scheduled Payment | E18: Extra Payment | F18: Total Payment | G18: Principal | H18: Interest | I18: Ending Balance | J18: Cumulative Interest
A20: =IF(Values_Entered,1,"") ->  | B20: =IF(Pay_Num<>"",DATE(YEAR(Loan_Start),MONTH(Loan_Start)+(Pay_Num)*12/Num_Pmt_Per_Year,DAY(Loan_Start)),"") ->  | C20: =IF(Values_Entered,Loan_Amount,"") ->  | D20: =IF(Pay_Num<>"",Scheduled_Monthly_Payment,"") ->  | E20: =IF(AND(Pay_Num<>"",Sched_Pay+Scheduled_Extra_Payments<Beg_Bal),Scheduled_Extra_Payments,IF(AND(Pay_Num<>"",Beg_Bal-Sched_Pay>0),Beg_Bal-Sched_Pay,IF(Pay_Num<>"",0,""))) ->  | F20: =IF(AND(Pay_Num<>"",Sched_Pay+Extra_Pay<Beg_Bal),Sched_Pay+Extra_Pay,IF(Pay_Num<>"",Beg_Bal,"")) ->  | G20: =IF(Pay_Num<>"",Total_Pay-Int,"") ->  | H20: =IF(Pay_Num<>"",Beg_Bal*(Interest_Rate/Num_Pmt_Per_Year),"") ->  | I20: =IF(AND(Pay_Num<>"",Sched_Pay+Extra_Pay<Beg_Bal),Beg_Bal-Princ,IF(Pay_Num<>"",0,"")) ->  | J20: =SUM($H$20:$H20) -> 0
A21: =IF(Values_Entered,A20+1,"") ->  | C21: =IF(Pay_Num<>"",I20,"") ->  | D21: =IF(Pay_Num<>"",Scheduled_Monthly_Payment,"") ->  | G21: =IF(Pay_Num<>"",Total_Pay-Int,"") ->  | H21: =IF(Pay_Num<>"",Beg_Bal*Interest_Rate/Num_Pmt_Per_Year,"") ->  | J21: =SUM($H$20:$H21) -> 0
A22: =IF(Values_Entered,A21+1,"") ->  | D22: =IF(Pay_Num<>"",Scheduled_Monthly_Payment,"") ->  | J22: =SUM($H$20:$H22) -> 0
A23: =IF(Values_Entered,A22+1,"") ->  | D23: =IF(Pay_Num<>"",Scheduled_Monthly_Payment,"") ->  | J23: =SUM($H$20:$H23) -> 0
A24: =IF(Values_Entered,A23+1,"") ->  | J24: =SUM($H$20:$H24) -> 0
A25: =IF(Values_Entered,A24+1,"") ->  | J25: =SUM($H$20:$H25) -> 0
A26: =IF(Values_Entered,A25+1,"") ->  | J26: =SUM($H$20:$H26) -> 0
A27: =IF(Values_Entered,A26+1,"") ->  | J27: =SUM($H$20:$H27) -> 0
A28: =IF(Values_Entered,A27+1,"") ->  | J28: =SUM($H$20:$H28) -> 0
A29: =IF(Values_Entered,A28+1,"") ->  | J29: =SUM($H$20:$H29) -> 0
A30: =IF(Values_Entered,A29+1,"") ->  | J30: =SUM($H$20:$H30) -> 0
A31: =IF(Values_Entered,A30+1,"") ->  | J31: =SUM($H$20:$H31) -> 0
A32: =IF(Values_Entered,A31+1,"") ->  | J32: =SUM($H$20:$H32) -> 0
A33: =IF(Values_Entered,A32+1,"") ->  | J33: =SUM($H$20:$H33) -> 0
A34: =IF(Values_Entered,A33+1,"") ->  | J34: =SUM($H$20:$H34) -> 0
A35: =IF(Values_Entered,A34+1,"") ->  | J35: =SUM($H$20:$H35) -> 0
A36: =IF(Values_Entered,A35+1,"") ->  | J36: =SUM($H$20:$H36) -> 0
A37: =IF(Values_Entered,A36+1,"") ->  | J37: =SUM($H$20:$H37) -> 0
A38: =IF(Values_Entered,A37+1,"") ->  | J38: =SUM($H$20:$H38) -> 0
A39: =IF(Values_Entered,A38+1,"") ->  | J39: =SUM($H$20:$H39) -> 0
A40: =IF(Values_Entered,A39+1,"") ->  | J40: =SUM($H$20:$H40) -> 0
A41: =IF(Values_Entered,A40+1,"") ->  | J41: =SUM($H$20:$H41) -> 0
A42: =IF(Values_Entered,A41+1,"") ->  | J42: =SUM($H$20:$H42) -> 0
A43: =IF(Values_Entered,A42+1,"") ->  | J43: =SUM($H$20:$H43) -> 0
A44: =IF(Values_Entered,A43+1,"") ->  | J44: =SUM($H$20:$H44) -> 0
A45: =IF(Values_Entered,A44+1,"") ->  | J45: =SUM($H$20:$H45) -> 0
A46: =IF(Values_Entered,A45+1,"") ->  | J46: =SUM($H$20:$H46) -> 0
A47: =IF(Values_Entered,A46+1,"") ->  | J47: =SUM($H$20:$H47) -> 0
A48: =IF(Values_Entered,A47+1,"") ->  | J48: =SUM($H$20:$H48) -> 0
A49: =IF(Values_Entered,A48+1,"") ->  | J49: =SUM($H$20:$H49) -> 0
A50: =IF(Values_Entered,A49+1,"") ->  | J50: =SUM($H$20:$H50) -> 0
A51: =IF(Values_Entered,A50+1,"") ->  | J51: =SUM($H$20:$H51) -> 0
A52: =IF(Values_Entered,A51+1,"") ->  | J52: =SUM($H$20:$H52) -> 0
A53: =IF(Values_Entered,A52+1,"") ->  | J53: =SUM($H$20:$H53) -> 0
A54: =IF(Values_Entered,A53+1,"") ->  | J54: =SUM($H$20:$H54) -> 0
A55: =IF(Values_Entered,A54+1,"") ->  | J55: =SUM($H$20:$H55) -> 0
A56: =IF(Values_Entered,A55+1,"") ->  | J56: =SUM($H$20:$H56) -> 0
A57: =IF(Values_Entered,A56+1,"") ->  | J57: =SUM($H$20:$H57) -> 0
A58: =IF(Values_Entered,A57+1,"") ->  | J58: =SUM($H$20:$H58) -> 0
A59: =IF(Values_Entered,A58+1,"") ->  | J59: =SUM($H$20:$H59) -> 0
A60: =IF(Values_Entered,A59+1,"") ->  | J60: =SUM($H$20:$H60) -> 0
A61: =IF(Values_Entered,A60+1,"") ->  | J61: =SUM($H$20:$H61) -> 0
A62: =IF(Values_Entered,A61+1,"") ->  | J62: =SUM($H$20:$H62) -> 0
A63: =IF(Values_Entered,A62+1,"") ->  | J63: =SUM($H$20:$H63) -> 0
A64: =IF(Values_Entered,A63+1,"") ->  | J64: =SUM($H$20:$H64) -> 0
A65: =IF(Values_Entered,A64+1,"") ->  | J65: =SUM($H$20:$H65) -> 0
A66: =IF(Values_Entered,A65+1,"") ->  | J66: =SUM($H$20:$H66) -> 0
A67: =IF(Values_Entered,A66+1,"") ->  | J67: =SUM($H$20:$H67) -> 0
A68: =IF(Values_Entered,A67+1,"") ->  | J68: =SUM($H$20:$H68) -> 0
A69: =IF(Values_Entered,A68+1,"") ->  | J69: =SUM($H$20:$H69) -> 0
A70: =IF(Values_Entered,A69+1,"") ->  | J70: =SUM($H$20:$H70) -> 0
A71: =IF(Values_Entered,A70+1,"") ->  | J71: =SUM($H$20:$H71) -> 0
A72: =IF(Values_Entered,A71+1,"") ->  | J72: =SUM($H$20:$H72) -> 0
A73: =IF(Values_Entered,A72+1,"") ->  | J73: =SUM($H$20:$H73) -> 0
A74: =IF(Values_Entered,A73+1,"") ->  | J74: =SUM($H$20:$H74) -> 0
A75: =IF(Values_Entered,A74+1,"") ->  | J75: =SUM($H$20:$H75) -> 0
A76: =IF(Values_Entered,A75+1,"") ->  | J76: =SUM($H$20:$H76) -> 0
A77: =IF(Values_Entered,A76+1,"") ->  | J77: =SUM($H$20:$H77) -> 0
A78: =IF(Values_Entered,A77+1,"") ->  | J78: =SUM($H$20:$H78) -> 0
A79: =IF(Values_Entered,A78+1,"") ->  | J79: =SUM($H$20:$H79) -> 0
A80: =IF(Values_Entered,A79+1,"") ->  | J80: =SUM($H$20:$H80) -> 0
A81: =IF(Values_Entered,A80+1,"") ->  | J81: =SUM($H$20:$H81) -> 0
A82: =IF(Values_Entered,A81+1,"") ->  | J82: =SUM($H$20:$H82) -> 0
A83: =IF(Values_Entered,A82+1,"") ->  | J83: =SUM($H$20:$H83) -> 0
A84: =IF(Values_Entered,A83+1,"") ->  | B84: =IF(Pay_Num<>"",DATE(YEAR(Loan_Start),MONTH(Loan_Start)+(Pay_Num)*12/Num_Pmt_Per_Year,DAY(Loan_Start)),"") ->  | E84: =IF(AND(Pay_Num<>"",Sched_Pay+Scheduled_Extra_Payments<Beg_Bal),Scheduled_Extra_Payments,IF(AND(Pay_Num<>"",Beg_Bal-Sched_Pay>0),Beg_Bal-Sched_Pay,IF(Pay_Num<>"",0,""))) ->  | F84: =IF(AND(Pay_Num<>"",Sched_Pay+Extra_Pay<Beg_Bal),Sched_Pay+Extra_Pay,IF(Pay_Num<>"",Beg_Bal,"")) ->  | I84: =IF(AND(Pay_Num<>"",Sched_Pay+Extra_Pay<Beg_Bal),Beg_Bal-Princ,IF(Pay_Num<>"",0,"")) ->  | J84: =SUM($H$20:$H84) -> 0
A85: =IF(Values_Entered,A84+1,"") ->  | C85: =IF(Pay_Num<>"",I84,"") ->  | G85: =IF(Pay_Num<>"",Total_Pay-Int,"") ->  | H85: =IF(Pay_Num<>"",Beg_Bal*Interest_Rate/Num_Pmt_Per_Year,"") ->  | J85: =SUM($H$20:$H85) -> 0
A86: =IF(Values_Entered,A85+1,"") ->  | D86: =IF(Pay_Num<>"",Scheduled_Monthly_Payment,"") ->  | J86: =SUM($H$20:$H86) -> 0
A87: =IF(Values_Entered,A86+1,"") ->  | J87: =SUM($H$20:$H87) -> 0
A88: =IF(Values_Entered,A87+1,"") ->  | J88: =SUM($H$20:$H88) -> 0
A89: =IF(Values_Entered,A88+1,"") ->  | J89: =SUM($H$20:$H89) -> 0
A90: =IF(Values_Entered,A89+1,"") ->  | J90: =SUM($H$20:$H90) -> 0
A91: =IF(Values_Entered,A90+1,"") ->  | J91: =SUM($H$20:$H91) -> 0
A92: =IF(Values_Entered,A91+1,"") ->  | J92: =SUM($H$20:$H92) -> 0
A93: =IF(Values_Entered,A92+1,"") ->  | J93: =SUM($H$20:$H93) -> 0
A94: =IF(Values_Entered,A93+1,"") ->  | J94: =SUM($H$20:$H94) -> 0
A95: =IF(Values_Entered,A94+1,"") ->  | J95: =SUM($H$20:$H95) -> 0
A96: =IF(Values_Entered,A95+1,"") ->  | J96: =SUM($H$20:$H96) -> 0
A97: =IF(Values_Entered,A96+1,"") ->  | J97: =SUM($H$20:$H97) -> 0
A98: =IF(Values_Entered,A97+1,"") ->  | J98: =SUM($H$20:$H98) -> 0
A99: =IF(Values_Entered,A98+1,"") ->  | J99: =SUM($H$20:$H99) -> 0
A100: =IF(Values_Entered,A99+1,"") ->  | J100: =SUM($H$20:$H100) -> 0
A101: =IF(Values_Entered,A100+1,"") ->  | J101: =SUM($H$20:$H101) -> 0
A102: =IF(Values_Entered,A101+1,"") ->  | J102: =SUM($H$20:$H102) -> 0
A103: =IF(Values_Entered,A102+1,"") ->  | J103: =SUM($H$20:$H103) -> 0
A104: =IF(Values_Entered,A103+1,"") ->  | J104: =SUM($H$20:$H104) -> 0
A105: =IF(Values_Entered,A104+1,"") ->  | J105: =SUM($H$20:$H105) -> 0
A106: =IF(Values_Entered,A105+1,"") ->  | J106: =SUM($H$20:$H106) -> 0
A107: =IF(Values_Entered,A106+1,"") ->  | J107: =SUM($H$20:$H107) -> 0
A108: =IF(Values_Entered,A107+1,"") ->  | J108: =SUM($H$20:$H108) -> 0
A109: =IF(Values_Entered,A108+1,"") ->  | J109: =SUM($H$20:$H109) -> 0
A110: =IF(Values_Entered,A109+1,"") ->  | J110: =SUM($H$20:$H110) -> 0
A111: =IF(Values_Entered,A110+1,"") ->  | J111: =SUM($H$20:$H111) -> 0
A112: =IF(Values_Entered,A111+1,"") ->  | J112: =SUM($H$20:$H112) -> 0
A113: =IF(Values_Entered,A112+1,"") ->  | J113: =SUM($H$20:$H113) -> 0
A114: =IF(Values_Entered,A113+1,"") ->  | J114: =SUM($H$20:$H114) -> 0
A115: =IF(Values_Entered,A114+1,"") ->  | J115: =SUM($H$20:$H115) -> 0
A116: =IF(Values_Entered,A115+1,"") ->  | J116: =SUM($H$20:$H116) -> 0
A117: =IF(Values_Entered,A116+1,"") ->  | J117: =SUM($H$20:$H117) -> 0
A118: =IF(Values_Entered,A117+1,"") ->  | J118: =SUM($H$20:$H118) -> 0
A119: =IF(Values_Entered,A118+1,"") ->  | J119: =SUM($H$20:$H119) -> 0
A120: =IF(Values_Entered,A119+1,"") ->  | J120: =SUM($H$20:$H120) -> 0
A121: =IF(Values_Entered,A120+1,"") ->  | J121: =SUM($H$20:$H121) -> 0
A122: =IF(Values_Entered,A121+1,"") ->  | J122: =SUM($H$20:$H122) -> 0
A123: =IF(Values_Entered,A122+1,"") ->  | J123: =SUM($H$20:$H123) -> 0
A124: =IF(Values_Entered,A123+1,"") ->  | J124: =SUM($H$20:$H124) -> 0
A125: =IF(Values_Entered,A124+1,"") ->  | J125: =SUM($H$20:$H125) -> 0
A126: =IF(Values_Entered,A125+1,"") ->  | J126: =SUM($H$20:$H126) -> 0
A127: =IF(Values_Entered,A126+1,"") ->  | J127: =SUM($H$20:$H127) -> 0
A128: =IF(Values_Entered,A127+1,"") ->  | J128: =SUM($H$20:$H128) -> 0
A129: =IF(Values_Entered,A128+1,"") ->  | J129: =SUM($H$20:$H129) -> 0
A130: =IF(Values_Entered,A129+1,"") ->  | J130: =SUM($H$20:$H130) -> 0
A131: =IF(Values_Entered,A130+1,"") ->  | J131: =SUM($H$20:$H131) -> 0
A132: =IF(Values_Entered,A131+1,"") ->  | J132: =SUM($H$20:$H132) -> 0
A133: =IF(Values_Entered,A132+1,"") ->  | J133: =SUM($H$20:$H133) -> 0
A134: =IF(Values_Entered,A133+1,"") ->  | J134: =SUM($H$20:$H134) -> 0
A135: =IF(Values_Entered,A134+1,"") ->  | J135: =SUM($H$20:$H135) -> 0
A136: =IF(Values_Entered,A135+1,"") ->  | J136: =SUM($H$20:$H136) -> 0
A137: =IF(Values_Entered,A136+1,"") ->  | J137: =SUM($H$20:$H137) -> 0
A138: =IF(Values_Entered,A137+1,"") ->  | J138: =SUM($H$20:$H138) -> 0
A139: =IF(Values_Entered,A138+1,"") ->  | J139: =SUM($H$20:$H139) -> 0
A140: =IF(Values_Entered,A139+1,"") ->  | J140: =SUM($H$20:$H140) -> 0
A141: =IF(Values_Entered,A140+1,"") ->  | J141: =SUM($H$20:$H141) -> 0
A142: =IF(Values_Entered,A141+1,"") ->  | J142: =SUM($H$20:$H142) -> 0
A143: =IF(Values_Entered,A142+1,"") ->  | J143: =SUM($H$20:$H143) -> 0
A144: =IF(Values_Entered,A143+1,"") ->  | J144: =SUM($H$20:$H144) -> 0
A145: =IF(Values_Entered,A144+1,"") ->  | J145: =SUM($H$20:$H145) -> 0
A146: =IF(Values_Entered,A145+1,"") ->  | J146: =SUM($H$20:$H146) -> 0
A147: =IF(Values_Entered,A146+1,"") ->  | J147: =SUM($H$20:$H147) -> 0
A148: =IF(Values_Entered,A147+1,"") ->  | B148: =IF(Pay_Num<>"",DATE(YEAR(Loan_Start),MONTH(Loan_Start)+(Pay_Num)*12/Num_Pmt_Per_Year,DAY(Loan_Start)),"") ->  | E148: =IF(AND(Pay_Num<>"",Sched_Pay+Scheduled_Extra_Payments<Beg_Bal),Scheduled_Extra_Payments,IF(AND(Pay_Num<>"",Beg_Bal-Sched_Pay>0),Beg_Bal-Sched_Pay,IF(Pay_Num<>"",0,""))) ->  | F148: =IF(AND(Pay_Num<>"",Sched_Pay+Extra_Pay<Beg_Bal),Sched_Pay+Extra_Pay,IF(Pay_Num<>"",Beg_Bal,"")) ->  | I148: =IF(AND(Pay_Num<>"",Sched_Pay+Extra_Pay<Beg_Bal),Beg_Bal-Princ,IF(Pay_Num<>"",0,"")) ->  | J148: =SUM($H$20:$H148) -> 0
A149: =IF(Values_Entered,A148+1,"") ->  | C149: =IF(Pay_Num<>"",I148,"") ->  | G149: =IF(Pay_Num<>"",Total_Pay-Int,"") ->  | H149: =IF(Pay_Num<>"",Beg_Bal*Interest_Rate/Num_Pmt_Per_Year,"") ->  | J149: =SUM($H$20:$H149) -> 0
A150: =IF(Values_Entered,A149+1,"") ->  | D150: =IF(Pay_Num<>"",Scheduled_Monthly_Payment,"") ->  | J150: =SUM($H$20:$H150) -> 0
A151: =IF(Values_Entered,A150+1,"") ->  | J151: =SUM($H$20:$H151) -> 0
A152: =IF(Values_Entered,A151+1,"") ->  | J152: =SUM($H$20:$H152) -> 0
A153: =IF(Values_Entered,A152+1,"") ->  | J153: =SUM($H$20:$H153) -> 0
A154: =IF(Values_Entered,A153+1,"") ->  | J154: =SUM($H$20:$H154) -> 0
A155: =IF(Values_Entered,A154+1,"") ->  | J155: =SUM($H$20:$H155) -> 0
A156: =IF(Values_Entered,A155+1,"") ->  | J156: =SUM($H$20:$H156) -> 0
A157: =IF(Values_Entered,A156+1,"") ->  | J157: =SUM($H$20:$H157) -> 0
A158: =IF(Values_Entered,A157+1,"") ->  | J158: =SUM($H$20:$H158) -> 0
A159: =IF(Values_Entered,A158+1,"") ->  | J159: =SUM($H$20:$H159) -> 0
A160: =IF(Values_Entered,A159+1,"") ->  | J160: =SUM($H$20:$H160) -> 0
A161: =IF(Values_Entered,A160+1,"") ->  | J161: =SUM($H$20:$H161) -> 0
A162: =IF(Values_Entered,A161+1,"") ->  | J162: =SUM($H$20:$H162) -> 0
A163: =IF(Values_Entered,A162+1,"") ->  | J163: =SUM($H$20:$H163) -> 0
A164: =IF(Values_Entered,A163+1,"") ->  | J164: =SUM($H$20:$H164) -> 0
A165: =IF(Values_Entered,A164+1,"") ->  | J165: =SUM($H$20:$H165) -> 0
A166: =IF(Values_Entered,A165+1,"") ->  | J166: =SUM($H$20:$H166) -> 0
A167: =IF(Values_Entered,A166+1,"") ->  | J167: =SUM($H$20:$H167) -> 0
A168: =IF(Values_Entered,A167+1,"") ->  | J168: =SUM($H$20:$H168) -> 0
A169: =IF(Values_Entered,A168+1,"") ->  | J169: =SUM($H$20:$H169) -> 0
A170: =IF(Values_Entered,A169+1,"") ->  | J170: =SUM($H$20:$H170) -> 0
A171: =IF(Values_Entered,A170+1,"") ->  | J171: =SUM($H$20:$H171) -> 0
A172: =IF(Values_Entered,A171+1,"") ->  | J172: =SUM($H$20:$H172) -> 0
A173: =IF(Values_Entered,A172+1,"") ->  | J173: =SUM($H$20:$H173) -> 0
A174: =IF(Values_Entered,A173+1,"") ->  | J174: =SUM($H$20:$H174) -> 0
A175: =IF(Values_Entered,A174+1,"") ->  | J175: =SUM($H$20:$H175) -> 0
A176: =IF(Values_Entered,A175+1,"") ->  | J176: =SUM($H$20:$H176) -> 0
A177: =IF(Values_Entered,A176+1,"") ->  | J177: =SUM($H$20:$H177) -> 0
A178: =IF(Values_Entered,A177+1,"") ->  | J178: =SUM($H$20:$H178) -> 0
A179: =IF(Values_Entered,A178+1,"") ->  | J179: =SUM($H$20:$H179) -> 0
A180: =IF(Values_Entered,A179+1,"") ->  | J180: =SUM($H$20:$H180) -> 0
A181: =IF(Values_Entered,A180+1,"") ->  | J181: =SUM($H$20:$H181) -> 0
A182: =IF(Values_Entered,A181+1,"") ->  | J182: =SUM($H$20:$H182) -> 0
A183: =IF(Values_Entered,A182+1,"") ->  | J183: =SUM($H$20:$H183) -> 0
A184: =IF(Values_Entered,A183+1,"") ->  | J184: =SUM($H$20:$H184) -> 0
A185: =IF(Values_Entered,A184+1,"") ->  | J185: =SUM($H$20:$H185) -> 0
A186: =IF(Values_Entered,A185+1,"") ->  | J186: =SUM($H$20:$H186) -> 0
A187: =IF(Values_Entered,A186+1,"") ->  | J187: =SUM($H$20:$H187) -> 0
A188: =IF(Values_Entered,A187+1,"") ->  | J188: =SUM($H$20:$H188) -> 0
A189: =IF(Values_Entered,A188+1,"") ->  | J189: =SUM($H$20:$H189) -> 0
A190: =IF(Values_Entered,A189+1,"") ->  | J190: =SUM($H$20:$H190) -> 0
A191: =IF(Values_Entered,A190+1,"") ->  | J191: =SUM($H$20:$H191) -> 0
A192: =IF(Values_Entered,A191+1,"") ->  | J192: =SUM($H$20:$H192) -> 0
A193: =IF(Values_Entered,A192+1,"") ->  | J193: =SUM($H$20:$H193) -> 0
A194: =IF(Values_Entered,A193+1,"") ->  | J194: =SUM($H$20:$H194) -> 0
A195: =IF(Values_Entered,A194+1,"") ->  | J195: =SUM($H$20:$H195) -> 0
A196: =IF(Values_Entered,A195+1,"") ->  | J196: =SUM($H$20:$H196) -> 0
A197: =IF(Values_Entered,A196+1,"") ->  | J197: =SUM($H$20:$H197) -> 0
A198: =IF(Values_Entered,A197+1,"") ->  | J198: =SUM($H$20:$H198) -> 0
A199: =IF(Values_Entered,A198+1,"") ->  | J199: =SUM($H$20:$H199) -> 0
A200: =IF(Values_Entered,A199+1,"") ->  | J200: =SUM($H$20:$H200) -> 0
A201: =IF(Values_Entered,A200+1,"") ->  | J201: =SUM($H$20:$H201) -> 0
A202: =IF(Values_Entered,A201+1,"") ->  | J202: =SUM($H$20:$H202) -> 0
A203: =IF(Values_Entered,A202+1,"") ->  | J203: =SUM($H$20:$H203) -> 0
A204: =IF(Values_Entered,A203+1,"") ->  | J204: =SUM($H$20:$H204) -> 0
A205: =IF(Values_Entered,A204+1,"") ->  | J205: =SUM($H$20:$H205) -> 0
A206: =IF(Values_Entered,A205+1,"") ->  | J206: =SUM($H$20:$H206) -> 0
A207: =IF(Values_Entered,A206+1,"") ->  | J207: =SUM($H$20:$H207) -> 0
A208: =IF(Values_Entered,A207+1,"") ->  | J208: =SUM($H$20:$H208) -> 0
A209: =IF(Values_Entered,A208+1,"") ->  | J209: =SUM($H$20:$H209) -> 0
... 170 more rows

Sheet Loan Repayment Grid (hidden)
A1: Loan Repayment: | F1: =Input!D55 -> Grid powered irrigation system costs
A2: Bank: | B2: =Input!E83 -> 0
B9: Enter Values | F9: Loan Summary
C10: Loan Amount | D10: =Input!E80 -> 0 | G10: Scheduled Payment | H10: =IF(Values_Entered,-PMT(Interest_Rate/Num_Pmt_Per_Year,Loan_Years*Num_Pmt_Per_Year,Loan_Amount),"0") -> 0
C11: Annual Interest Rate | D11: =Input!E81 -> 0 | G11: Scheduled Number of Payments | H11: =IF(Values_Entered,Loan_Years*Num_Pmt_Per_Year,"") -> 
C12: Loan Period in Years | D12: =Input!E82 -> 0 | G12: Actual Number of Payments | H12: =IF(Values_Entered,Number_of_Payments,"") -> 
C13: Number of Payments Per Year | D13: 1 | G13: Total Early Payments | H13: =IF(Values_Entered,SUMIF(Beg_Bal,">0",Extra_Pay),"") -> 
C14: Start Date of Loan | D14: 2017-01-01 | G14: Total Interest | H14: =IF(Values_Entered,SUMIF(Beg_Bal,">0",Int),"") -> 
C15: Optional Extra Payments | D15: 0
A18: PmtNo. | B18: Payment Date | C18: Beginning Balance | D18: Scheduled Payment | E18: Extra Payment | F18: Total Payment | G18: Principal | H18: Interest | I18: Ending Balance | J18: Cumulative Interest
A20: =IF(Values_Entered,1,"") ->  | B20: =IF(Pay_Num<>"",DATE(YEAR(Loan_Start),MONTH(Loan_Start)+(Pay_Num)*12/Num_Pmt_Per_Year,DAY(Loan_Start)),"") ->  | C20: =IF(Values_Entered,Loan_Amount,"") ->  | D20: =IF(Pay_Num<>"",Scheduled_Monthly_Payment,"") ->  | E20: =IF(AND(Pay_Num<>"",Sched_Pay+Scheduled_Extra_Payments<Beg_Bal),Scheduled_Extra_Payments,IF(AND(Pay_Num<>"",Beg_Bal-Sched_Pay>0),Beg_Bal-Sched_Pay,IF(Pay_Num<>"",0,""))) ->  | F20: =IF(AND(Pay_Num<>"",Sched_Pay+Extra_Pay<Beg_Bal),Sched_Pay+Extra_Pay,IF(Pay_Num<>"",Beg_Bal,"")) ->  | G20: =IF(Pay_Num<>"",Total_Pay-Int,"") ->  | H20: =IF(Pay_Num<>"",Beg_Bal*(Interest_Rate/Num_Pmt_Per_Year),"") ->  | I20: =IF(AND(Pay_Num<>"",Sched_Pay+Extra_Pay<Beg_Bal),Beg_Bal-Princ,IF(Pay_Num<>"",0,"")) ->  | J20: =SUM($H$20:$H20) -> 0
A21: =IF(Values_Entered,A20+1,"") ->  | C21: =IF(Pay_Num<>"",I20,"") ->  | D21: =IF(Pay_Num<>"",Scheduled_Monthly_Payment,"") ->  | G21: =IF(Pay_Num<>"",Total_Pay-Int,"") ->  | H21: =IF(Pay_Num<>"",Beg_Bal*Interest_Rate/Num_Pmt_Per_Year,"") ->  | J21: =SUM($H$20:$H21) -> 0
A22: =IF(Values_Entered,A21+1,"") ->  | D22: =IF(Pay_Num<>"",Scheduled_Monthly_Payment,"") ->  | J22: =SUM($H$20:$H22) -> 0
A23: =IF(Values_Entered,A22+1,"") ->  | D23: =IF(Pay_Num<>"",Scheduled_Monthly_Payment,"") ->  | J23: =SUM($H$20:$H23) -> 0
A24: =IF(Values_Entered,A23+1,"") ->  | J24: =SUM($H$20:$H24) -> 0
A25: =IF(Values_Entered,A24+1,"") ->  | J25: =SUM($H$20:$H25) -> 0
A26: =IF(Values_Entered,A25+1,"") ->  | J26: =SUM($H$20:$H26) -> 0
A27: =IF(Values_Entered,A26+1,"") ->  | J27: =SUM($H$20:$H27) -> 0
A28: =IF(Values_Entered,A27+1,"") ->  | J28: =SUM($H$20:$H28) -> 0
A29: =IF(Values_Entered,A28+1,"") ->  | J29: =SUM($H$20:$H29) -> 0
A30: =IF(Values_Entered,A29+1,"") ->  | J30: =SUM($H$20:$H30) -> 0
A31: =IF(Values_Entered,A30+1,"") ->  | J31: =SUM($H$20:$H31) -> 0
A32: =IF(Values_Entered,A31+1,"") ->  | J32: =SUM($H$20:$H32) -> 0
A33: =IF(Values_Entered,A32+1,"") ->  | J33: =SUM($H$20:$H33) -> 0
A34: =IF(Values_Entered,A33+1,"") ->  | J34: =SUM($H$20:$H34) -> 0
A35: =IF(Values_Entered,A34+1,"") ->  | J35: =SUM($H$20:$H35) -> 0
A36: =IF(Values_Entered,A35+1,"") ->  | J36: =SUM($H$20:$H36) -> 0
A37: =IF(Values_Entered,A36+1,"") ->  | J37: =SUM($H$20:$H37) -> 0
A38: =IF(Values_Entered,A37+1,"") ->  | J38: =SUM($H$20:$H38) -> 0
A39: =IF(Values_Entered,A38+1,"") ->  | J39: =SUM($H$20:$H39) -> 0
A40: =IF(Values_Entered,A39+1,"") ->  | J40: =SUM($H$20:$H40) -> 0
A41: =IF(Values_Entered,A40+1,"") ->  | J41: =SUM($H$20:$H41) -> 0
A42: =IF(Values_Entered,A41+1,"") ->  | J42: =SUM($H$20:$H42) -> 0
A43: =IF(Values_Entered,A42+1,"") ->  | J43: =SUM($H$20:$H43) -> 0
A44: =IF(Values_Entered,A43+1,"") ->  | J44: =SUM($H$20:$H44) -> 0
A45: =IF(Values_Entered,A44+1,"") ->  | J45: =SUM($H$20:$H45) -> 0
A46: =IF(Values_Entered,A45+1,"") ->  | J46: =SUM($H$20:$H46) -> 0
A47: =IF(Values_Entered,A46+1,"") ->  | J47: =SUM($H$20:$H47) -> 0
A48: =IF(Values_Entered,A47+1,"") ->  | J48: =SUM($H$20:$H48) -> 0
A49: =IF(Values_Entered,A48+1,"") ->  | J49: =SUM($H$20:$H49) -> 0
A50: =IF(Values_Entered,A49+1,"") ->  | J50: =SUM($H$20:$H50) -> 0
A51: =IF(Values_Entered,A50+1,"") ->  | J51: =SUM($H$20:$H51) -> 0
A52: =IF(Values_Entered,A51+1,"") ->  | J52: =SUM($H$20:$H52) -> 0
A53: =IF(Values_Entered,A52+1,"") ->  | J53: =SUM($H$20:$H53) -> 0
A54: =IF(Values_Entered,A53+1,"") ->  | J54: =SUM($H$20:$H54) -> 0
A55: =IF(Values_Entered,A54+1,"") ->  | J55: =SUM($H$20:$H55) -> 0
A56: =IF(Values_Entered,A55+1,"") ->  | J56: =SUM($H$20:$H56) -> 0
A57: =IF(Values_Entered,A56+1,"") ->  | J57: =SUM($H$20:$H57) -> 0
A58: =IF(Values_Entered,A57+1,"") ->  | J58: =SUM($H$20:$H58) -> 0
A59: =IF(Values_Entered,A58+1,"") ->  | J59: =SUM($H$20:$H59) -> 0
A60: =IF(Values_Entered,A59+1,"") ->  | J60: =SUM($H$20:$H60) -> 0
A61: =IF(Values_Entered,A60+1,"") ->  | J61: =SUM($H$20:$H61) -> 0
A62: =IF(Values_Entered,A61+1,"") ->  | J62: =SUM($H$20:$H62) -> 0
A63: =IF(Values_Entered,A62+1,"") ->  | J63: =SUM($H$20:$H63) -> 0
A64: =IF(Values_Entered,A63+1,"") ->  | J64: =SUM($H$20:$H64) -> 0
A65: =IF(Values_Entered,A64+1,"") ->  | J65: =SUM($H$20:$H65) -> 0
A66: =IF(Values_Entered,A65+1,"") ->  | J66: =SUM($H$20:$H66) -> 0
A67: =IF(Values_Entered,A66+1,"") ->  | J67: =SUM($H$20:$H67) -> 0
A68: =IF(Values_Entered,A67+1,"") ->  | J68: =SUM($H$20:$H68) -> 0
A69: =IF(Values_Entered,A68+1,"") ->  | J69: =SUM($H$20:$H69) -> 0
A70: =IF(Values_Entered,A69+1,"") ->  | J70: =SUM($H$20:$H70) -> 0
A71: =IF(Values_Entered,A70+1,"") ->  | J71: =SUM($H$20:$H71) -> 0
A72: =IF(Values_Entered,A71+1,"") ->  | J72: =SUM($H$20:$H72) -> 0
A73: =IF(Values_Entered,A72+1,"") ->  | J73: =SUM($H$20:$H73) -> 0
A74: =IF(Values_Entered,A73+1,"") ->  | J74: =SUM($H$20:$H74) -> 0
A75: =IF(Values_Entered,A74+1,"") ->  | J75: =SUM($H$20:$H75) -> 0
A76: =IF(Values_Entered,A75+1,"") ->  | J76: =SUM($H$20:$H76) -> 0
A77: =IF(Values_Entered,A76+1,"") ->  | J77: =SUM($H$20:$H77) -> 0
A78: =IF(Values_Entered,A77+1,"") ->  | J78: =SUM($H$20:$H78) -> 0
A79: =IF(Values_Entered,A78+1,"") ->  | J79: =SUM($H$20:$H79) -> 0
A80: =IF(Values_Entered,A79+1,"") ->  | J80: =SUM($H$20:$H80) -> 0
A81: =IF(Values_Entered,A80+1,"") ->  | J81: =SUM($H$20:$H81) -> 0
A82: =IF(Values_Entered,A81+1,"") ->  | J82: =SUM($H$20:$H82) -> 0
A83: =IF(Values_Entered,A82+1,"") ->  | J83: =SUM($H$20:$H83) -> 0
A84: =IF(Values_Entered,A83+1,"") ->  | B84: =IF(Pay_Num<>"",DATE(YEAR(Loan_Start),MONTH(Loan_Start)+(Pay_Num)*12/Num_Pmt_Per_Year,DAY(Loan_Start)),"") ->  | E84: =IF(AND(Pay_Num<>"",Sched_Pay+Scheduled_Extra_Payments<Beg_Bal),Scheduled_Extra_Payments,IF(AND(Pay_Num<>"",Beg_Bal-Sched_Pay>0),Beg_Bal-Sched_Pay,IF(Pay_Num<>"",0,""))) ->  | F84: =IF(AND(Pay_Num<>"",Sched_Pay+Extra_Pay<Beg_Bal),Sched_Pay+Extra_Pay,IF(Pay_Num<>"",Beg_Bal,"")) ->  | I84: =IF(AND(Pay_Num<>"",Sched_Pay+Extra_Pay<Beg_Bal),Beg_Bal-Princ,IF(Pay_Num<>"",0,"")) ->  | J84: =SUM($H$20:$H84) -> 0
A85: =IF(Values_Entered,A84+1,"") ->  | C85: =IF(Pay_Num<>"",I84,"") ->  | G85: =IF(Pay_Num<>"",Total_Pay-Int,"") ->  | H85: =IF(Pay_Num<>"",Beg_Bal*Interest_Rate/Num_Pmt_Per_Year,"") ->  | J85: =SUM($H$20:$H85) -> 0
A86: =IF(Values_Entered,A85+1,"") ->  | D86: =IF(Pay_Num<>"",Scheduled_Monthly_Payment,"") ->  | J86: =SUM($H$20:$H86) -> 0
A87: =IF(Values_Entered,A86+1,"") ->  | J87: =SUM($H$20:$H87) -> 0
A88: =IF(Values_Entered,A87+1,"") ->  | J88: =SUM($H$20:$H88) -> 0
A89: =IF(Values_Entered,A88+1,"") ->  | J89: =SUM($H$20:$H89) -> 0
A90: =IF(Values_Entered,A89+1,"") ->  | J90: =SUM($H$20:$H90) -> 0
A91: =IF(Values_Entered,A90+1,"") ->  | J91: =SUM($H$20:$H91) -> 0
A92: =IF(Values_Entered,A91+1,"") ->  | J92: =SUM($H$20:$H92) -> 0
A93: =IF(Values_Entered,A92+1,"") ->  | J93: =SUM($H$20:$H93) -> 0
A94: =IF(Values_Entered,A93+1,"") ->  | J94: =SUM($H$20:$H94) -> 0
A95: =IF(Values_Entered,A94+1,"") ->  | J95: =SUM($H$20:$H95) -> 0
A96: =IF(Values_Entered,A95+1,"") ->  | J96: =SUM($H$20:$H96) -> 0
A97: =IF(Values_Entered,A96+1,"") ->  | J97: =SUM($H$20:$H97) -> 0
A98: =IF(Values_Entered,A97+1,"") ->  | J98: =SUM($H$20:$H98) -> 0
A99: =IF(Values_Entered,A98+1,"") ->  | J99: =SUM($H$20:$H99) -> 0
A100: =IF(Values_Entered,A99+1,"") ->  | J100: =SUM($H$20:$H100) -> 0
A101: =IF(Values_Entered,A100+1,"") ->  | J101: =SUM($H$20:$H101) -> 0
A102: =IF(Values_Entered,A101+1,"") ->  | J102: =SUM($H$20:$H102) -> 0
A103: =IF(Values_Entered,A102+1,"") ->  | J103: =SUM($H$20:$H103) -> 0
A104: =IF(Values_Entered,A103+1,"") ->  | J104: =SUM($H$20:$H104) -> 0
A105: =IF(Values_Entered,A104+1,"") ->  | J105: =SUM($H$20:$H105) -> 0
A106: =IF(Values_Entered,A105+1,"") ->  | J106: =SUM($H$20:$H106) -> 0
A107: =IF(Values_Entered,A106+1,"") ->  | J107: =SUM($H$20:$H107) -> 0
A108: =IF(Values_Entered,A107+1,"") ->  | J108: =SUM($H$20:$H108) -> 0
A109: =IF(Values_Entered,A108+1,"") ->  | J109: =SUM($H$20:$H109) -> 0
A110: =IF(Values_Entered,A109+1,"") ->  | J110: =SUM($H$20:$H110) -> 0
A111: =IF(Values_Entered,A110+1,"") ->  | J111: =SUM($H$20:$H111) -> 0
A112: =IF(Values_Entered,A111+1,"") ->  | J112: =SUM($H$20:$H112) -> 0
A113: =IF(Values_Entered,A112+1,"") ->  | J113: =SUM($H$20:$H113) -> 0
A114: =IF(Values_Entered,A113+1,"") ->  | J114: =SUM($H$20:$H114) -> 0
A115: =IF(Values_Entered,A114+1,"") ->  | J115: =SUM($H$20:$H115) -> 0
A116: =IF(Values_Entered,A115+1,"") ->  | J116: =SUM($H$20:$H116) -> 0
A117: =IF(Values_Entered,A116+1,"") ->  | J117: =SUM($H$20:$H117) -> 0
A118: =IF(Values_Entered,A117+1,"") ->  | J118: =SUM($H$20:$H118) -> 0
A119: =IF(Values_Entered,A118+1,"") ->  | J119: =SUM($H$20:$H119) -> 0
A120: =IF(Values_Entered,A119+1,"") ->  | J120: =SUM($H$20:$H120) -> 0
A121: =IF(Values_Entered,A120+1,"") ->  | J121: =SUM($H$20:$H121) -> 0
A122: =IF(Values_Entered,A121+1,"") ->  | J122: =SUM($H$20:$H122) -> 0
A123: =IF(Values_Entered,A122+1,"") ->  | J123: =SUM($H$20:$H123) -> 0
A124: =IF(Values_Entered,A123+1,"") ->  | J124: =SUM($H$20:$H124) -> 0
A125: =IF(Values_Entered,A124+1,"") ->  | J125: =SUM($H$20:$H125) -> 0
A126: =IF(Values_Entered,A125+1,"") ->  | J126: =SUM($H$20:$H126) -> 0
A127: =IF(Values_Entered,A126+1,"") ->  | J127: =SUM($H$20:$H127) -> 0
A128: =IF(Values_Entered,A127+1,"") ->  | J128: =SUM($H$20:$H128) -> 0
A129: =IF(Values_Entered,A128+1,"") ->  | J129: =SUM($H$20:$H129) -> 0
A130: =IF(Values_Entered,A129+1,"") ->  | J130: =SUM($H$20:$H130) -> 0
A131: =IF(Values_Entered,A130+1,"") ->  | J131: =SUM($H$20:$H131) -> 0
A132: =IF(Values_Entered,A131+1,"") ->  | J132: =SUM($H$20:$H132) -> 0
A133: =IF(Values_Entered,A132+1,"") ->  | J133: =SUM($H$20:$H133) -> 0
A134: =IF(Values_Entered,A133+1,"") ->  | J134: =SUM($H$20:$H134) -> 0
A135: =IF(Values_Entered,A134+1,"") ->  | J135: =SUM($H$20:$H135) -> 0
A136: =IF(Values_Entered,A135+1,"") ->  | J136: =SUM($H$20:$H136) -> 0
A137: =IF(Values_Entered,A136+1,"") ->  | J137: =SUM($H$20:$H137) -> 0
A138: =IF(Values_Entered,A137+1,"") ->  | J138: =SUM($H$20:$H138) -> 0
A139: =IF(Values_Entered,A138+1,"") ->  | J139: =SUM($H$20:$H139) -> 0
A140: =IF(Values_Entered,A139+1,"") ->  | J140: =SUM($H$20:$H140) -> 0
A141: =IF(Values_Entered,A140+1,"") ->  | J141: =SUM($H$20:$H141) -> 0
A142: =IF(Values_Entered,A141+1,"") ->  | J142: =SUM($H$20:$H142) -> 0
A143: =IF(Values_Entered,A142+1,"") ->  | J143: =SUM($H$20:$H143) -> 0
A144: =IF(Values_Entered,A143+1,"") ->  | J144: =SUM($H$20:$H144) -> 0
A145: =IF(Values_Entered,A144+1,"") ->  | J145: =SUM($H$20:$H145) -> 0
A146: =IF(Values_Entered,A145+1,"") ->  | J146: =SUM($H$20:$H146) -> 0
A147: =IF(Values_Entered,A146+1,"") ->  | J147: =SUM($H$20:$H147) -> 0
A148: =IF(Values_Entered,A147+1,"") ->  | B148: =IF(Pay_Num<>"",DATE(YEAR(Loan_Start),MONTH(Loan_Start)+(Pay_Num)*12/Num_Pmt_Per_Year,DAY(Loan_Start)),"") ->  | E148: =IF(AND(Pay_Num<>"",Sched_Pay+Scheduled_Extra_Payments<Beg_Bal),Scheduled_Extra_Payments,IF(AND(Pay_Num<>"",Beg_Bal-Sched_Pay>0),Beg_Bal-Sched_Pay,IF(Pay_Num<>"",0,""))) ->  | F148: =IF(AND(Pay_Num<>"",Sched_Pay+Extra_Pay<Beg_Bal),Sched_Pay+Extra_Pay,IF(Pay_Num<>"",Beg_Bal,"")) ->  | I148: =IF(AND(Pay_Num<>"",Sched_Pay+Extra_Pay<Beg_Bal),Beg_Bal-Princ,IF(Pay_Num<>"",0,"")) ->  | J148: =SUM($H$20:$H148) -> 0
A149: =IF(Values_Entered,A148+1,"") ->  | C149: =IF(Pay_Num<>"",I148,"") ->  | G149: =IF(Pay_Num<>"",Total_Pay-Int,"") ->  | H149: =IF(Pay_Num<>"",Beg_Bal*Interest_Rate/Num_Pmt_Per_Year,"") ->  | J149: =SUM($H$20:$H149) -> 0
A150: =IF(Values_Entered,A149+1,"") ->  | D150: =IF(Pay_Num<>"",Scheduled_Monthly_Payment,"") ->  | J150: =SUM($H$20:$H150) -> 0
A151: =IF(Values_Entered,A150+1,"") ->  | J151: =SUM($H$20:$H151) -> 0
A152: =IF(Values_Entered,A151+1,"") ->  | J152: =SUM($H$20:$H152) -> 0
A153: =IF(Values_Entered,A152+1,"") ->  | J153: =SUM($H$20:$H153) -> 0
A154: =IF(Values_Entered,A153+1,"") ->  | J154: =SUM($H$20:$H154) -> 0
A155: =IF(Values_Entered,A154+1,"") ->  | J155: =SUM($H$20:$H155) -> 0
A156: =IF(Values_Entered,A155+1,"") ->  | J156: =SUM($H$20:$H156) -> 0
A157: =IF(Values_Entered,A156+1,"") ->  | J157: =SUM($H$20:$H157) -> 0
A158: =IF(Values_Entered,A157+1,"") ->  | J158: =SUM($H$20:$H158) -> 0
A159: =IF(Values_Entered,A158+1,"") ->  | J159: =SUM($H$20:$H159) -> 0
A160: =IF(Values_Entered,A159+1,"") ->  | J160: =SUM($H$20:$H160) -> 0
A161: =IF(Values_Entered,A160+1,"") ->  | J161: =SUM($H$20:$H161) -> 0
A162: =IF(Values_Entered,A161+1,"") ->  | J162: =SUM($H$20:$H162) -> 0
A163: =IF(Values_Entered,A162+1,"") ->  | J163: =SUM($H$20:$H163) -> 0
A164: =IF(Values_Entered,A163+1,"") ->  | J164: =SUM($H$20:$H164) -> 0
A165: =IF(Values_Entered,A164+1,"") ->  | J165: =SUM($H$20:$H165) -> 0
A166: =IF(Values_Entered,A165+1,"") ->  | J166: =SUM($H$20:$H166) -> 0
A167: =IF(Values_Entered,A166+1,"") ->  | J167: =SUM($H$20:$H167) -> 0
A168: =IF(Values_Entered,A167+1,"") ->  | J168: =SUM($H$20:$H168) -> 0
A169: =IF(Values_Entered,A168+1,"") ->  | J169: =SUM($H$20:$H169) -> 0
A170: =IF(Values_Entered,A169+1,"") ->  | J170: =SUM($H$20:$H170) -> 0
A171: =IF(Values_Entered,A170+1,"") ->  | J171: =SUM($H$20:$H171) -> 0
A172: =IF(Values_Entered,A171+1,"") ->  | J172: =SUM($H$20:$H172) -> 0
A173: =IF(Values_Entered,A172+1,"") ->  | J173: =SUM($H$20:$H173) -> 0
A174: =IF(Values_Entered,A173+1,"") ->  | J174: =SUM($H$20:$H174) -> 0
A175: =IF(Values_Entered,A174+1,"") ->  | J175: =SUM($H$20:$H175) -> 0
A176: =IF(Values_Entered,A175+1,"") ->  | J176: =SUM($H$20:$H176) -> 0
A177: =IF(Values_Entered,A176+1,"") ->  | J177: =SUM($H$20:$H177) -> 0
A178: =IF(Values_Entered,A177+1,"") ->  | J178: =SUM($H$20:$H178) -> 0
A179: =IF(Values_Entered,A178+1,"") ->  | J179: =SUM($H$20:$H179) -> 0
A180: =IF(Values_Entered,A179+1,"") ->  | J180: =SUM($H$20:$H180) -> 0
A181: =IF(Values_Entered,A180+1,"") ->  | J181: =SUM($H$20:$H181) -> 0
A182: =IF(Values_Entered,A181+1,"") ->  | J182: =SUM($H$20:$H182) -> 0
A183: =IF(Values_Entered,A182+1,"") ->  | J183: =SUM($H$20:$H183) -> 0
A184: =IF(Values_Entered,A183+1,"") ->  | J184: =SUM($H$20:$H184) -> 0
A185: =IF(Values_Entered,A184+1,"") ->  | J185: =SUM($H$20:$H185) -> 0
A186: =IF(Values_Entered,A185+1,"") ->  | J186: =SUM($H$20:$H186) -> 0
A187: =IF(Values_Entered,A186+1,"") ->  | J187: =SUM($H$20:$H187) -> 0
A188: =IF(Values_Entered,A187+1,"") ->  | J188: =SUM($H$20:$H188) -> 0
A189: =IF(Values_Entered,A188+1,"") ->  | J189: =SUM($H$20:$H189) -> 0
A190: =IF(Values_Entered,A189+1,"") ->  | J190: =SUM($H$20:$H190) -> 0
A191: =IF(Values_Entered,A190+1,"") ->  | J191: =SUM($H$20:$H191) -> 0
A192: =IF(Values_Entered,A191+1,"") ->  | J192: =SUM($H$20:$H192) -> 0
A193: =IF(Values_Entered,A192+1,"") ->  | J193: =SUM($H$20:$H193) -> 0
A194: =IF(Values_Entered,A193+1,"") ->  | J194: =SUM($H$20:$H194) -> 0
A195: =IF(Values_Entered,A194+1,"") ->  | J195: =SUM($H$20:$H195) -> 0
A196: =IF(Values_Entered,A195+1,"") ->  | J196: =SUM($H$20:$H196) -> 0
A197: =IF(Values_Entered,A196+1,"") ->  | J197: =SUM($H$20:$H197) -> 0
A198: =IF(Values_Entered,A197+1,"") ->  | J198: =SUM($H$20:$H198) -> 0
A199: =IF(Values_Entered,A198+1,"") ->  | J199: =SUM($H$20:$H199) -> 0
A200: =IF(Values_Entered,A199+1,"") ->  | J200: =SUM($H$20:$H200) -> 0
A201: =IF(Values_Entered,A200+1,"") ->  | J201: =SUM($H$20:$H201) -> 0
A202: =IF(Values_Entered,A201+1,"") ->  | J202: =SUM($H$20:$H202) -> 0
A203: =IF(Values_Entered,A202+1,"") ->  | J203: =SUM($H$20:$H203) -> 0
A204: =IF(Values_Entered,A203+1,"") ->  | J204: =SUM($H$20:$H204) -> 0
A205: =IF(Values_Entered,A204+1,"") ->  | J205: =SUM($H$20:$H205) -> 0
A206: =IF(Values_Entered,A205+1,"") ->  | J206: =SUM($H$20:$H206) -> 0
A207: =IF(Values_Entered,A206+1,"") ->  | J207: =SUM($H$20:$H207) -> 0
A208: =IF(Values_Entered,A207+1,"") ->  | J208: =SUM($H$20:$H208) -> 0
A209: =IF(Values_Entered,A208+1,"") ->  | J209: =SUM($H$20:$H209) -> 0
... 170 more rows

Sheet Loan Repayment Diesel (hidden)
A1: Loan Repayment: | F1: =Input!D55 -> Grid powered irrigation system costs
A2: Bank: | B2: =Input!E114 -> 0
B9: Enter Values | F9: Loan Summary
C10: Loan Amount | D10: =Input!E111 -> 0 | G10: Scheduled Payment | H10: =IF(Values_Entered,-PMT(Interest_Rate/Num_Pmt_Per_Year,Loan_Years*Num_Pmt_Per_Year,Loan_Amount),"0") -> 0
C11: Annual Interest Rate | D11: =Input!E112 -> 0 | G11: Scheduled Number of Payments | H11: =IF(Values_Entered,Loan_Years*Num_Pmt_Per_Year,"") -> 
C12: Loan Period in Years | D12: =Input!E113 -> 0 | G12: Actual Number of Payments | H12: =IF(Values_Entered,Number_of_Payments,"") -> 
C13: Number of Payments Per Year | D13: 1 | G13: Total Early Payments | H13: =IF(Values_Entered,SUMIF(Beg_Bal,">0",Extra_Pay),"") -> 
C14: Start Date of Loan | D14: 2017-01-01 | G14: Total Interest | H14: =IF(Values_Entered,SUMIF(Beg_Bal,">0",Int),"") -> 
C15: Optional Extra Payments | D15: 0
A18: PmtNo. | B18: Payment Date | C18: Beginning Balance | D18: Scheduled Payment | E18: Extra Payment | F18: Total Payment | G18: Principal | H18: Interest | I18: Ending Balance | J18: Cumulative Interest
A20: =IF(Values_Entered,1,"") ->  | B20: =IF(Pay_Num<>"",DATE(YEAR(Loan_Start),MONTH(Loan_Start)+(Pay_Num)*12/Num_Pmt_Per_Year,DAY(Loan_Start)),"") ->  | C20: =IF(Values_Entered,Loan_Amount,"") ->  | D20: =IF(Pay_Num<>"",Scheduled_Monthly_Payment,"") ->  | E20: =IF(AND(Pay_Num<>"",Sched_Pay+Scheduled_Extra_Payments<Beg_Bal),Scheduled_Extra_Payments,IF(AND(Pay_Num<>"",Beg_Bal-Sched_Pay>0),Beg_Bal-Sched_Pay,IF(Pay_Num<>"",0,""))) ->  | F20: =IF(AND(Pay_Num<>"",Sched_Pay+Extra_Pay<Beg_Bal),Sched_Pay+Extra_Pay,IF(Pay_Num<>"",Beg_Bal,"")) ->  | G20: =IF(Pay_Num<>"",Total_Pay-Int,"") ->  | H20: =IF(Pay_Num<>"",Beg_Bal*(Interest_Rate/Num_Pmt_Per_Year),"") ->  | I20: =IF(AND(Pay_Num<>"",Sched_Pay+Extra_Pay<Beg_Bal),Beg_Bal-Princ,IF(Pay_Num<>"",0,"")) ->  | J20: =SUM($H$20:$H20) -> 0
A21: =IF(Values_Entered,A20+1,"") ->  | C21: =IF(Pay_Num<>"",I20,"") ->  | D21: =IF(Pay_Num<>"",Scheduled_Monthly_Payment,"") ->  | G21: =IF(Pay_Num<>"",Total_Pay-Int,"") ->  | H21: =IF(Pay_Num<>"",Beg_Bal*Interest_Rate/Num_Pmt_Per_Year,"") ->  | J21: =SUM($H$20:$H21) -> 0
A22: =IF(Values_Entered,A21+1,"") ->  | D22: =IF(Pay_Num<>"",Scheduled_Monthly_Payment,"") ->  | J22: =SUM($H$20:$H22) -> 0
A23: =IF(Values_Entered,A22+1,"") ->  | D23: =IF(Pay_Num<>"",Scheduled_Monthly_Payment,"") ->  | J23: =SUM($H$20:$H23) -> 0
A24: =IF(Values_Entered,A23+1,"") ->  | J24: =SUM($H$20:$H24) -> 0
A25: =IF(Values_Entered,A24+1,"") ->  | J25: =SUM($H$20:$H25) -> 0
A26: =IF(Values_Entered,A25+1,"") ->  | J26: =SUM($H$20:$H26) -> 0
A27: =IF(Values_Entered,A26+1,"") ->  | J27: =SUM($H$20:$H27) -> 0
A28: =IF(Values_Entered,A27+1,"") ->  | J28: =SUM($H$20:$H28) -> 0
A29: =IF(Values_Entered,A28+1,"") ->  | J29: =SUM($H$20:$H29) -> 0
A30: =IF(Values_Entered,A29+1,"") ->  | J30: =SUM($H$20:$H30) -> 0
A31: =IF(Values_Entered,A30+1,"") ->  | J31: =SUM($H$20:$H31) -> 0
A32: =IF(Values_Entered,A31+1,"") ->  | J32: =SUM($H$20:$H32) -> 0
A33: =IF(Values_Entered,A32+1,"") ->  | J33: =SUM($H$20:$H33) -> 0
A34: =IF(Values_Entered,A33+1,"") ->  | J34: =SUM($H$20:$H34) -> 0
A35: =IF(Values_Entered,A34+1,"") ->  | J35: =SUM($H$20:$H35) -> 0
A36: =IF(Values_Entered,A35+1,"") ->  | J36: =SUM($H$20:$H36) -> 0
A37: =IF(Values_Entered,A36+1,"") ->  | J37: =SUM($H$20:$H37) -> 0
A38: =IF(Values_Entered,A37+1,"") ->  | J38: =SUM($H$20:$H38) -> 0
A39: =IF(Values_Entered,A38+1,"") ->  | J39: =SUM($H$20:$H39) -> 0
A40: =IF(Values_Entered,A39+1,"") ->  | J40: =SUM($H$20:$H40) -> 0
A41: =IF(Values_Entered,A40+1,"") ->  | J41: =SUM($H$20:$H41) -> 0
A42: =IF(Values_Entered,A41+1,"") ->  | J42: =SUM($H$20:$H42) -> 0
A43: =IF(Values_Entered,A42+1,"") ->  | J43: =SUM($H$20:$H43) -> 0
A44: =IF(Values_Entered,A43+1,"") ->  | J44: =SUM($H$20:$H44) -> 0
A45: =IF(Values_Entered,A44+1,"") ->  | J45: =SUM($H$20:$H45) -> 0
A46: =IF(Values_Entered,A45+1,"") ->  | J46: =SUM($H$20:$H46) -> 0
A47: =IF(Values_Entered,A46+1,"") ->  | J47: =SUM($H$20:$H47) -> 0
A48: =IF(Values_Entered,A47+1,"") ->  | J48: =SUM($H$20:$H48) -> 0
A49: =IF(Values_Entered,A48+1,"") ->  | J49: =SUM($H$20:$H49) -> 0
A50: =IF(Values_Entered,A49+1,"") ->  | J50: =SUM($H$20:$H50) -> 0
A51: =IF(Values_Entered,A50+1,"") ->  | J51: =SUM($H$20:$H51) -> 0
A52: =IF(Values_Entered,A51+1,"") ->  | J52: =SUM($H$20:$H52) -> 0
A53: =IF(Values_Entered,A52+1,"") ->  | J53: =SUM($H$20:$H53) -> 0
A54: =IF(Values_Entered,A53+1,"") ->  | J54: =SUM($H$20:$H54) -> 0
A55: =IF(Values_Entered,A54+1,"") ->  | J55: =SUM($H$20:$H55) -> 0
A56: =IF(Values_Entered,A55+1,"") ->  | J56: =SUM($H$20:$H56) -> 0
A57: =IF(Values_Entered,A56+1,"") ->  | J57: =SUM($H$20:$H57) -> 0
A58: =IF(Values_Entered,A57+1,"") ->  | J58: =SUM($H$20:$H58) -> 0
A59: =IF(Values_Entered,A58+1,"") ->  | J59: =SUM($H$20:$H59) -> 0
A60: =IF(Values_Entered,A59+1,"") ->  | J60: =SUM($H$20:$H60) -> 0
A61: =IF(Values_Entered,A60+1,"") ->  | J61: =SUM($H$20:$H61) -> 0
A62: =IF(Values_Entered,A61+1,"") ->  | J62: =SUM($H$20:$H62) -> 0
A63: =IF(Values_Entered,A62+1,"") ->  | J63: =SUM($H$20:$H63) -> 0
A64: =IF(Values_Entered,A63+1,"") ->  | J64: =SUM($H$20:$H64) -> 0
A65: =IF(Values_Entered,A64+1,"") ->  | J65: =SUM($H$20:$H65) -> 0
A66: =IF(Values_Entered,A65+1,"") ->  | J66: =SUM($H$20:$H66) -> 0
A67: =IF(Values_Entered,A66+1,"") ->  | J67: =SUM($H$20:$H67) -> 0
A68: =IF(Values_Entered,A67+1,"") ->  | J68: =SUM($H$20:$H68) -> 0
A69: =IF(Values_Entered,A68+1,"") ->  | J69: =SUM($H$20:$H69) -> 0
A70: =IF(Values_Entered,A69+1,"") ->  | J70: =SUM($H$20:$H70) -> 0
A71: =IF(Values_Entered,A70+1,"") ->  | J71: =SUM($H$20:$H71) -> 0
A72: =IF(Values_Entered,A71+1,"") ->  | J72: =SUM($H$20:$H72) -> 0
A73: =IF(Values_Entered,A72+1,"") ->  | J73: =SUM($H$20:$H73) -> 0
A74: =IF(Values_Entered,A73+1,"") ->  | J74: =SUM($H$20:$H74) -> 0
A75: =IF(Values_Entered,A74+1,"") ->  | J75: =SUM($H$20:$H75) -> 0
A76: =IF(Values_Entered,A75+1,"") ->  | J76: =SUM($H$20:$H76) -> 0
A77: =IF(Values_Entered,A76+1,"") ->  | J77: =SUM($H$20:$H77) -> 0
A78: =IF(Values_Entered,A77+1,"") ->  | J78: =SUM($H$20:$H78) -> 0
A79: =IF(Values_Entered,A78+1,"") ->  | J79: =SUM($H$20:$H79) -> 0
A80: =IF(Values_Entered,A79+1,"") ->  | J80: =SUM($H$20:$H80) -> 0
A81: =IF(Values_Entered,A80+1,"") ->  | J81: =SUM($H$20:$H81) -> 0
A82: =IF(Values_Entered,A81+1,"") ->  | J82: =SUM($H$20:$H82) -> 0
A83: =IF(Values_Entered,A82+1,"") ->  | J83: =SUM($H$20:$H83) -> 0
A84: =IF(Values_Entered,A83+1,"") ->  | B84: =IF(Pay_Num<>"",DATE(YEAR(Loan_Start),MONTH(Loan_Start)+(Pay_Num)*12/Num_Pmt_Per_Year,DAY(Loan_Start)),"") ->  | E84: =IF(AND(Pay_Num<>"",Sched_Pay+Scheduled_Extra_Payments<Beg_Bal),Scheduled_Extra_Payments,IF(AND(Pay_Num<>"",Beg_Bal-Sched_Pay>0),Beg_Bal-Sched_Pay,IF(Pay_Num<>"",0,""))) ->  | F84: =IF(AND(Pay_Num<>"",Sched_Pay+Extra_Pay<Beg_Bal),Sched_Pay+Extra_Pay,IF(Pay_Num<>"",Beg_Bal,"")) ->  | I84: =IF(AND(Pay_Num<>"",Sched_Pay+Extra_Pay<Beg_Bal),Beg_Bal-Princ,IF(Pay_Num<>"",0,"")) ->  | J84: =SUM($H$20:$H84) -> 0
A85: =IF(Values_Entered,A84+1,"") ->  | C85: =IF(Pay_Num<>"",I84,"") ->  | G85: =IF(Pay_Num<>"",Total_Pay-Int,"") ->  | H85: =IF(Pay_Num<>"",Beg_Bal*Interest_Rate/Num_Pmt_Per_Year,"") ->  | J85: =SUM($H$20:$H85) -> 0
A86: =IF(Values_Entered,A85+1,"") ->  | D86: =IF(Pay_Num<>"",Scheduled_Monthly_Payment,"") ->  | J86: =SUM($H$20:$H86) -> 0
A87: =IF(Values_Entered,A86+1,"") ->  | J87: =SUM($H$20:$H87) -> 0
A88: =IF(Values_Entered,A87+1,"") ->  | J88: =SUM($H$20:$H88) -> 0
A89: =IF(Values_Entered,A88+1,"") ->  | J89: =SUM($H$20:$H89) -> 0
A90: =IF(Values_Entered,A89+1,"") ->  | J90: =SUM($H$20:$H90) -> 0
A91: =IF(Values_Entered,A90+1,"") ->  | J91: =SUM($H$20:$H91) -> 0
A92: =IF(Values_Entered,A91+1,"") ->  | J92: =SUM($H$20:$H92) -> 0
A93: =IF(Values_Entered,A92+1,"") ->  | J93: =SUM($H$20:$H93) -> 0
A94: =IF(Values_Entered,A93+1,"") ->  | J94: =SUM($H$20:$H94) -> 0
A95: =IF(Values_Entered,A94+1,"") ->  | J95: =SUM($H$20:$H95) -> 0
A96: =IF(Values_Entered,A95+1,"") ->  | J96: =SUM($H$20:$H96) -> 0
A97: =IF(Values_Entered,A96+1,"") ->  | J97: =SUM($H$20:$H97) -> 0
A98: =IF(Values_Entered,A97+1,"") ->  | J98: =SUM($H$20:$H98) -> 0
A99: =IF(Values_Entered,A98+1,"") ->  | J99: =SUM($H$20:$H99) -> 0
A100: =IF(Values_Entered,A99+1,"") ->  | J100: =SUM($H$20:$H100) -> 0
A101: =IF(Values_Entered,A100+1,"") ->  | J101: =SUM($H$20:$H101) -> 0
A102: =IF(Values_Entered,A101+1,"") ->  | J102: =SUM($H$20:$H102) -> 0
A103: =IF(Values_Entered,A102+1,"") ->  | J103: =SUM($H$20:$H103) -> 0
A104: =IF(Values_Entered,A103+1,"") ->  | J104: =SUM($H$20:$H104) -> 0
A105: =IF(Values_Entered,A104+1,"") ->  | J105: =SUM($H$20:$H105) -> 0
A106: =IF(Values_Entered,A105+1,"") ->  | J106: =SUM($H$20:$H106) -> 0
A107: =IF(Values_Entered,A106+1,"") ->  | J107: =SUM($H$20:$H107) -> 0
A108: =IF(Values_Entered,A107+1,"") ->  | J108: =SUM($H$20:$H108) -> 0
A109: =IF(Values_Entered,A108+1,"") ->  | J109: =SUM($H$20:$H109) -> 0
A110: =IF(Values_Entered,A109+1,"") ->  | J110: =SUM($H$20:$H110) -> 0
A111: =IF(Values_Entered,A110+1,"") ->  | J111: =SUM($H$20:$H111) -> 0
A112: =IF(Values_Entered,A111+1,"") ->  | J112: =SUM($H$20:$H112) -> 0
A113: =IF(Values_Entered,A112+1,"") ->  | J113: =SUM($H$20:$H113) -> 0
A114: =IF(Values_Entered,A113+1,"") ->  | J114: =SUM($H$20:$H114) -> 0
A115: =IF(Values_Entered,A114+1,"") ->  | J115: =SUM($H$20:$H115) -> 0
A116: =IF(Values_Entered,A115+1,"") ->  | J116: =SUM($H$20:$H116) -> 0
A117: =IF(Values_Entered,A116+1,"") ->  | J117: =SUM($H$20:$H117) -> 0
A118: =IF(Values_Entered,A117+1,"") ->  | J118: =SUM($H$20:$H118) -> 0
A119: =IF(Values_Entered,A118+1,"") ->  | J119: =SUM($H$20:$H119) -> 0
A120: =IF(Values_Entered,A119+1,"") ->  | J120: =SUM($H$20:$H120) -> 0
A121: =IF(Values_Entered,A120+1,"") ->  | J121: =SUM($H$20:$H121) -> 0
A122: =IF(Values_Entered,A121+1,"") ->  | J122: =SUM($H$20:$H122) -> 0
A123: =IF(Values_Entered,A122+1,"") ->  | J123: =SUM($H$20:$H123) -> 0
A124: =IF(Values_Entered,A123+1,"") ->  | J124: =SUM($H$20:$H124) -> 0
A125: =IF(Values_Entered,A124+1,"") ->  | J125: =SUM($H$20:$H125) -> 0
A126: =IF(Values_Entered,A125+1,"") ->  | J126: =SUM($H$20:$H126) -> 0
A127: =IF(Values_Entered,A126+1,"") ->  | J127: =SUM($H$20:$H127) -> 0
A128: =IF(Values_Entered,A127+1,"") ->  | J128: =SUM($H$20:$H128) -> 0
A129: =IF(Values_Entered,A128+1,"") ->  | J129: =SUM($H$20:$H129) -> 0
A130: =IF(Values_Entered,A129+1,"") ->  | J130: =SUM($H$20:$H130) -> 0
A131: =IF(Values_Entered,A130+1,"") ->  | J131: =SUM($H$20:$H131) -> 0
A132: =IF(Values_Entered,A131+1,"") ->  | J132: =SUM($H$20:$H132) -> 0
A133: =IF(Values_Entered,A132+1,"") ->  | J133: =SUM($H$20:$H133) -> 0
A134: =IF(Values_Entered,A133+1,"") ->  | J134: =SUM($H$20:$H134) -> 0
A135: =IF(Values_Entered,A134+1,"") ->  | J135: =SUM($H$20:$H135) -> 0
A136: =IF(Values_Entered,A135+1,"") ->  | J136: =SUM($H$20:$H136) -> 0
A137: =IF(Values_Entered,A136+1,"") ->  | J137: =SUM($H$20:$H137) -> 0
A138: =IF(Values_Entered,A137+1,"") ->  | J138: =SUM($H$20:$H138) -> 0
A139: =IF(Values_Entered,A138+1,"") ->  | J139: =SUM($H$20:$H139) -> 0
A140: =IF(Values_Entered,A139+1,"") ->  | J140: =SUM($H$20:$H140) -> 0
A141: =IF(Values_Entered,A140+1,"") ->  | J141: =SUM($H$20:$H141) -> 0
A142: =IF(Values_Entered,A141+1,"") ->  | J142: =SUM($H$20:$H142) -> 0
A143: =IF(Values_Entered,A142+1,"") ->  | J143: =SUM($H$20:$H143) -> 0
A144: =IF(Values_Entered,A143+1,"") ->  | J144: =SUM($H$20:$H144) -> 0
A145: =IF(Values_Entered,A144+1,"") ->  | J145: =SUM($H$20:$H145) -> 0
A146: =IF(Values_Entered,A145+1,"") ->  | J146: =SUM($H$20:$H146) -> 0
A147: =IF(Values_Entered,A146+1,"") ->  | J147: =SUM($H$20:$H147) -> 0
A148: =IF(Values_Entered,A147+1,"") ->  | B148: =IF(Pay_Num<>"",DATE(YEAR(Loan_Start),MONTH(Loan_Start)+(Pay_Num)*12/Num_Pmt_Per_Year,DAY(Loan_Start)),"") ->  | E148: =IF(AND(Pay_Num<>"",Sched_Pay+Scheduled_Extra_Payments<Beg_Bal),Scheduled_Extra_Payments,IF(AND(Pay_Num<>"",Beg_Bal-Sched_Pay>0),Beg_Bal-Sched_Pay,IF(Pay_Num<>"",0,""))) ->  | F148: =IF(AND(Pay_Num<>"",Sched_Pay+Extra_Pay<Beg_Bal),Sched_Pay+Extra_Pay,IF(Pay_Num<>"",Beg_Bal,"")) ->  | I148: =IF(AND(Pay_Num<>"",Sched_Pay+Extra_Pay<Beg_Bal),Beg_Bal-Princ,IF(Pay_Num<>"",0,"")) ->  | J148: =SUM($H$20:$H148) -> 0
A149: =IF(Values_Entered,A148+1,"") ->  | C149: =IF(Pay_Num<>"",I148,"") ->  | G149: =IF(Pay_Num<>"",Total_Pay-Int,"") ->  | H149: =IF(Pay_Num<>"",Beg_Bal*Interest_Rate/Num_Pmt_Per_Year,"") ->  | J149: =SUM($H$20:$H149) -> 0
A150: =IF(Values_Entered,A149+1,"") ->  | D150: =IF(Pay_Num<>"",Scheduled_Monthly_Payment,"") ->  | J150: =SUM($H$20:$H150) -> 0
A151: =IF(Values_Entered,A150+1,"") ->  | J151: =SUM($H$20:$H151) -> 0
A152: =IF(Values_Entered,A151+1,"") ->  | J152: =SUM($H$20:$H152) -> 0
A153: =IF(Values_Entered,A152+1,"") ->  | J153: =SUM($H$20:$H153) -> 0
A154: =IF(Values_Entered,A153+1,"") ->  | J154: =SUM($H$20:$H154) -> 0
A155: =IF(Values_Entered,A154+1,"") ->  | J155: =SUM($H$20:$H155) -> 0
A156: =IF(Values_Entered,A155+1,"") ->  | J156: =SUM($H$20:$H156) -> 0
A157: =IF(Values_Entered,A156+1,"") ->  | J157: =SUM($H$20:$H157) -> 0
A158: =IF(Values_Entered,A157+1,"") ->  | J158: =SUM($H$20:$H158) -> 0
A159: =IF(Values_Entered,A158+1,"") ->  | J159: =SUM($H$20:$H159) -> 0
A160: =IF(Values_Entered,A159+1,"") ->  | J160: =SUM($H$20:$H160) -> 0
A161: =IF(Values_Entered,A160+1,"") ->  | J161: =SUM($H$20:$H161) -> 0
A162: =IF(Values_Entered,A161+1,"") ->  | J162: =SUM($H$20:$H162) -> 0
A163: =IF(Values_Entered,A162+1,"") ->  | J163: =SUM($H$20:$H163) -> 0
A164: =IF(Values_Entered,A163+1,"") ->  | J164: =SUM($H$20:$H164) -> 0
A165: =IF(Values_Entered,A164+1,"") ->  | J165: =SUM($H$20:$H165) -> 0
A166: =IF(Values_Entered,A165+1,"") ->  | J166: =SUM($H$20:$H166) -> 0
A167: =IF(Values_Entered,A166+1,"") ->  | J167: =SUM($H$20:$H167) -> 0
A168: =IF(Values_Entered,A167+1,"") ->  | J168: =SUM($H$20:$H168) -> 0
A169: =IF(Values_Entered,A168+1,"") ->  | J169: =SUM($H$20:$H169) -> 0
A170: =IF(Values_Entered,A169+1,"") ->  | J170: =SUM($H$20:$H170) -> 0
A171: =IF(Values_Entered,A170+1,"") ->  | J171: =SUM($H$20:$H171) -> 0
A172: =IF(Values_Entered,A171+1,"") ->  | J172: =SUM($H$20:$H172) -> 0
A173: =IF(Values_Entered,A172+1,"") ->  | J173: =SUM($H$20:$H173) -> 0
A174: =IF(Values_Entered,A173+1,"") ->  | J174: =SUM($H$20:$H174) -> 0
A175: =IF(Values_Entered,A174+1,"") ->  | J175: =SUM($H$20:$H175) -> 0
A176: =IF(Values_Entered,A175+1,"") ->  | J176: =SUM($H$20:$H176) -> 0
A177: =IF(Values_Entered,A176+1,"") ->  | J177: =SUM($H$20:$H177) -> 0
A178: =IF(Values_Entered,A177+1,"") ->  | J178: =SUM($H$20:$H178) -> 0
A179: =IF(Values_Entered,A178+1,"") ->  | J179: =SUM($H$20:$H179) -> 0
A180: =IF(Values_Entered,A179+1,"") ->  | J180: =SUM($H$20:$H180) -> 0
A181: =IF(Values_Entered,A180+1,"") ->  | J181: =SUM($H$20:$H181) -> 0
A182: =IF(Values_Entered,A181+1,"") ->  | J182: =SUM($H$20:$H182) -> 0
A183: =IF(Values_Entered,A182+1,"") ->  | J183: =SUM($H$20:$H183) -> 0
A184: =IF(Values_Entered,A183+1,"") ->  | J184: =SUM($H$20:$H184) -> 0
A185: =IF(Values_Entered,A184+1,"") ->  | J185: =SUM($H$20:$H185) -> 0
A186: =IF(Values_Entered,A185+1,"") ->  | J186: =SUM($H$20:$H186) -> 0
A187: =IF(Values_Entered,A186+1,"") ->  | J187: =SUM($H$20:$H187) -> 0
A188: =IF(Values_Entered,A187+1,"") ->  | J188: =SUM($H$20:$H188) -> 0
A189: =IF(Values_Entered,A188+1,"") ->  | J189: =SUM($H$20:$H189) -> 0
A190: =IF(Values_Entered,A189+1,"") ->  | J190: =SUM($H$20:$H190) -> 0
A191: =IF(Values_Entered,A190+1,"") ->  | J191: =SUM($H$20:$H191) -> 0
A192: =IF(Values_Entered,A191+1,"") ->  | J192: =SUM($H$20:$H192) -> 0
A193: =IF(Values_Entered,A192+1,"") ->  | J193: =SUM($H$20:$H193) -> 0
A194: =IF(Values_Entered,A193+1,"") ->  | J194: =SUM($H$20:$H194) -> 0
A195: =IF(Values_Entered,A194+1,"") ->  | J195: =SUM($H$20:$H195) -> 0
A196: =IF(Values_Entered,A195+1,"") ->  | J196: =SUM($H$20:$H196) -> 0
A197: =IF(Values_Entered,A196+1,"") ->  | J197: =SUM($H$20:$H197) -> 0
A198: =IF(Values_Entered,A197+1,"") ->  | J198: =SUM($H$20:$H198) -> 0
A199: =IF(Values_Entered,A198+1,"") ->  | J199: =SUM($H$20:$H199) -> 0
A200: =IF(Values_Entered,A199+1,"") ->  | J200: =SUM($H$20:$H200) -> 0
A201: =IF(Values_Entered,A200+1,"") ->  | J201: =SUM($H$20:$H201) -> 0
A202: =IF(Values_Entered,A201+1,"") ->  | J202: =SUM($H$20:$H202) -> 0
A203: =IF(Values_Entered,A202+1,"") ->  | J203: =SUM($H$20:$H203) -> 0
A204: =IF(Values_Entered,A203+1,"") ->  | J204: =SUM($H$20:$H204) -> 0
A205: =IF(Values_Entered,A204+1,"") ->  | J205: =SUM($H$20:$H205) -> 0
A206: =IF(Values_Entered,A205+1,"") ->  | J206: =SUM($H$20:$H206) -> 0
A207: =IF(Values_Entered,A206+1,"") ->  | J207: =SUM($H$20:$H207) -> 0
A208: =IF(Values_Entered,A207+1,"") ->  | J208: =SUM($H$20:$H208) -> 0
A209: =IF(Values_Entered,A208+1,"") ->  | J209: =SUM($H$20:$H209) -> 0
... 170 more rows
